Cogmind - Beta 11.1 @@@ ROGUE MODE // 2022.05.01 @ 05:35:32 Player: ktur Result: Destroyed by G-73 Enforcer with Heavy Laser Performance ------------- Evolutions (9) 4500 Regions Visited (35) 7000 Robots Destroyed (316) 1580 Value Destroyed (11112) 11112 Prototype IDs (88) 1760 Alien Tech Used (7) 1400 Bonus (19553) 19553 TOTAL SCORE: 46905 Bonus ------- High Alert Combat Kills 175 Follower Combat Kills 972 Met Data Miner 300 Met Zhirov 300 Met Warlord at Base 500 MAIN.C Attacked Warlord 500 Used Core Reset Matrix 3000 Met Warlord at Research 2000 Destroyed MAIN.C Guards 500 Met MAIN.C 5000 Destroyed MAIN.C Shell 5000 Met Warlord at Command 2000 Friendly Fire -694 Cogmind --------- Core Integrity 0/1600 Matter 300/300 Energy 98/100 System Corruption 30% Temperature Cool (18) Movement Core (50) Location -1/Command Parts ------- > --- POWER (2) -------- (None) > --- PROPULSION (9) --- (None) > --- UTILITY (12) ----- Experimental Terrain Scan Processor > --- WEAPON (2) ------- (None) > --- INVENTORY (5) ---- Improved Linear Gravjet Advanced Cloaking Device Phase Redirector Antimissile System Transdimensional Reconstructor Peak State ------------ > --- POWER ------------ Vortex Chain Reactor > --- PROPULSION ------- Antigrav System Cooled Gravmag System Cooled Antigrav System Combat Antigrav System Combat Antigrav System Combat Linear Gravjet Combat Linear Gravjet Combat Linear Gravjet Combat Linear Gravjet > --- UTILITY ---------- High-capacity Storage Unit Experimental Terrain Scan Processor Advanced Melee Analysis Suite Experimental Core Analyzer Experimental Armor Integrity Analyzer Femtoactuators Experimental Phase Shifter Experimental Utility Shielding SHELL Armor Antimissile System > --- WEAPON ----------- Sigix Broadsword > --- INVENTORY -------- Micro Antimatter Reactor Micro Antimatter Reactor Compact Particle Reactor Improved Linear Gravjet Experimental Energy Well Experimental Matter Compressor Experimental Sensor Array Experimental Terrain Scanner Advanced Force Booster Advanced Cloaking Device Experimental Shield Generator Phase Redirector Transdimensional Reconstructor Subatomic Replicator Cooled Nova Cannon Mini Smartbomb Launcher [Rating: 235] Favorites ----------- Power Micro Fission Core Engine Ion Engine Power Core Micro Fission Core Reactor Micro Antimatter Reactor Propulsion Cooled Gravmag System Treads Light Treads Hover Unit Cooled Gravmag System Utility Advanced Hacking Suite Device Experimental Sensor Array Storage Large Storage Unit Processor Advanced Signal Interpreter Hackware Advanced Hacking Suite Protection Experimental Utility Shielding Weapon Mini Smartbomb Launcher Energy Gun Improved Medium Laser Energy Cannon Cooled Plasma Cannon Ballistic Gun Improved Assault Rifle Ballistic Cannon Hypervelocity Mass Driver Launcher Mini Smartbomb Launcher Slashing Weapon Greatsword Piercing Weapon Kinetic Spear Special Melee Weapon Improved Datajack Build | -11 -10 -10 -9 -8 -7 -7 -7 -7 -7 -7 -6 -6 -6 -6 -5 -5 -5 -5 -5 -5 -4 -4 -4 -4 -4 -4 -4 -3 -3 -3 -2 -2 -2 -1 -1 ------- Run | Scr Mat Min Mat Mat Fac Was Fac Low Low Dat Pro Fac Was Fac Fac Was Fac Upp Upp Zhi Pro Fac Was Fac Upp Upp War Pro Res Qua Res Tes Sec Acc Com Slots Evolved 18 | . . . 2 2 2 . . . . . . 2 . . 2 . . . . . . 2 . . . . . . 2 . 2 . . 2 . Power 1 | . . . . . . . . . . . . . . . . . . . . . . 1 . . . . . . . . . . . . . Propulsion 7 | . . . 1 . 1 . . . . . . . . . 1 . . . . . . 1 . . . . . . . . 2 . . 1 . Utility 10 | . . . 1 2 1 . . . . . . 2 . . 1 . . . . . . . . . . . . . 2 . . . . 1 . Weapon . | . . . . . . . . . . . . . . . . . . . . . . . . . . . . . . . . . . . . Parts Attached 726 | 6 14 3 36 40 46 . 51 5 2 1 4 56 . 57 60 1 25 6 11 7 1 39 . 57 1 . 12 11 17 20 17 58 34 6 22 Power 41 | 1 . . 3 3 4 . 1 . . . 1 2 . 1 8 . 2 . . 3 . 2 . 1 . . . . . 2 4 1 1 . 1 Engine 6 | 1 . . 3 . 1 . . . . . . . . . . . . . . . . 1 . . . . . . . . . . . . . Core 26 | . . . . 3 3 . 1 . . . 1 2 . 1 8 . 2 . . 2 . 1 . 1 . . . . . . 1 . . . . Reactor 9 | . . . . . . . . . . . . . . . . . . . . 1 . . . . . . . . . 2 3 1 1 . 1 Propulsion 112 | 2 1 . 11 13 13 . 13 . . . . 3 . 10 10 . 4 . . . . 5 . 2 . . 2 . 3 3 3 4 1 2 7 Treads 26 | 2 1 . 11 12 . . . . . . . . . . . . . . . . . . . . . . . . . . . . . . . Leg . | . . . . . . . . . . . . . . . . . . . . . . . . . . . . . . . . . . . . Wheel . | . . . . . . . . . . . . . . . . . . . . . . . . . . . . . . . . . . . . Hover 86 | . . . . 1 13 . 13 . . . . 3 . 10 10 . 4 . . . . 5 . 2 . . 2 . 3 3 3 4 1 2 7 Flight . | . . . . . . . . . . . . . . . . . . . . . . . . . . . . . . . . . . . . Utility 459 | 1 7 1 9 13 23 . 33 1 2 1 3 39 . 42 39 . 17 6 9 4 1 27 . 51 1 . 5 11 14 12 7 38 28 4 10 Device 260 | . 1 . 2 4 12 . 19 1 1 . 3 20 . 20 17 . 7 4 4 2 . 18 . 36 1 . 5 9 9 9 4 19 21 4 8 Storage 9 | 1 1 1 1 . 1 . . . . . . . . . 1 . . . . 1 . . . 1 . . . . . 1 . . . . . Processor 20 | . . . 3 3 1 . 1 . 1 . . . . 1 1 . 2 . 1 . . 1 . . . . . . 1 . 1 3 . . . Hackware 59 | . . . . 1 3 . 6 . . . . 11 . 10 6 . 2 . . . . 4 . 6 . . . 1 2 1 . 6 . . . Protection 111 | . 5 . 3 5 6 . 7 . . 1 . 8 . 11 14 . 6 2 4 1 1 4 . 8 . . . 1 2 1 2 10 7 . 2 Artifact . | . . . . . . . . . . . . . . . . . . . . . . . . . . . . . . . . . . . . Weapon 114 | 2 6 2 13 11 6 . 4 4 . . . 12 . 4 3 1 2 . 2 . . 5 . 3 . . 5 . . 3 3 15 4 . 4 Energy Gun 14 | 1 3 1 3 4 . . . . . . . . . . . . . . . . . . . . . . 1 . . . . 1 . . . Energy Cannon 19 | . . . . . . . . . . . . . . 2 . . . . . . . 3 . . . . 4 . . 1 . 6 2 . 1 Ballistic Gun 16 | 1 1 . 8 4 . . . . . . . . . . . . . . 1 . . . . . . . . . . . . . . . 1 Ballistic Cannon 1 | . . . . . . . . . . . . . . . . . . . . . . . . . . . . . . . . . . . 1 Launcher 30 | . 2 1 2 3 1 . 1 2 . . . 6 . 1 3 1 1 . 1 . . . . 3 . . . . . 1 . . . . 1 Special Weapon . | . . . . . . . . . . . . . . . . . . . . . . . . . . . . . . . . . . . . Impact Weapon . | . . . . . . . . . . . . . . . . . . . . . . . . . . . . . . . . . . . . Slashing Weapon 27 | . . . . . 4 . 3 2 . . . 5 . . . . . . . . . . . . . . . . . 1 2 8 2 . . Piercing Weapon 5 | . . . . . . . . . . . . 1 . 1 . . 1 . . . . 1 . . . . . . . . 1 . . . . Special Melee Weapon 2 | . . . . . 1 . . . . . . . . . . . . . . . . 1 . . . . . . . . . . . . . Unidentified Prototypes 28 | . 1 . 2 2 . . 3 . . . . . . . . . . . . 3 . . . . . . 5 . . 2 4 4 . . 2 Corrupted Parts 1 | . . . . . . . . . . . . 1 . . . . . . . . . . . . . . . . . . . . . . . System Corruption 6 | . . . . . . . . . . . . 6 . . . . . . . . . . . . . . . . . . . . . . . Parts Lost 43 | . 1 . . 2 2 . 3 . . . . . . 2 3 2 . . . . 1 1 . 5 . . . 1 . . . 1 . . 19 Power 6 | . . . . 1 . . 1 . . . . . . . 2 1 . . . . . . . . . . . . . . . . . . 1 Propulsion 16 | . 1 . . . 1 . 1 . . . . . . . . 1 . . . . . 1 . 1 . . . 1 . . . . . . 9 Utility 16 | . . . . 1 1 . 1 . . . . . . 2 . . . . . . . . . 4 . . . . . . . 1 . . 6 Weapon 5 | . . . . . . . . . . . . . . . 1 . . . . . 1 . . . . . . . . . . . . . 3 Highest Loss Streak 16 | . 1 . . 2 2 . 1 . . . . . . 1 1 2 . . . . 1 1 . 2 . . . 1 . . . 1 . . 16 To Critical Strikes . | . . . . . . . . . . . . . . . . . . . . . . . . . . . . . . . . . . . . Average Slot Usage (%) 95 | . 98 100 99 98 90 92 91 92 92 91 92 92 100 98 98 94 95 97 99 100 99 93 100 97 100 . 99 98 98 99 93 94 94 95 83 Engine 1 | . 14 14 11 . 1 . . . . . . . . . . . . . . . . . . . . . . . . . . . . . . Core 4 | . . . . 7 5 7 6 7 7 6 7 6 6 6 4 2 5 5 5 5 5 6 10 10 10 . 10 10 9 4 1 . . . . Reactor 1 | . . . . . . . . . . . . . . . . . . . . . . . . . . . . . . 4 6 8 8 8 4 Treads 4 | . 28 28 32 26 . . . . . . . . . . . . . . . . . . . . . . . . . . . . . . . Hover 24 | . . . . . 29 30 29 30 30 30 30 25 26 25 28 26 25 29 29 29 29 30 31 30 31 . 31 29 27 27 31 33 34 35 33 Device 6 | . . 14 3 4 7 7 6 7 7 6 7 5 6 5 4 5 4 5 6 8 10 9 10 7 10 . 10 8 12 12 9 9 6 8 9 Storage 6 | . 14 14 11 9 7 7 7 7 7 7 7 6 6 6 5 5 5 5 5 5 5 5 5 5 5 . 5 5 4 4 4 4 4 4 3 Processor 7 | . . . 7 10 7 7 7 7 7 7 7 6 6 6 5 5 5 5 5 5 5 5 5 5 5 . 5 5 9 9 8 12 21 20 16 Hackware 21 | . . . . 5 20 23 22 23 23 23 23 28 26 29 28 29 29 29 29 25 23 21 21 25 26 . 26 26 23 24 21 19 13 12 1 Protection 3 | . 12 . 10 14 . . . . . . . 3 6 3 5 5 5 3 3 5 5 5 5 1 . . . 1 . . 2 . 1 4 7 Energy Gun 2 | . 18 27 11 9 . . . . . . . . . . . . . . . . . . . . . . . . . . . . . . . Ballistic Gun 1 | . 9 . 9 8 . . . . . . . . . . . . . . . . . . . . . . . . . . . . . . 1 Launcher 2 | . . . . . . . . . . . . . 6 5 4 5 4 5 5 5 5 5 5 4 5 . 5 5 4 4 1 . . . . Slashing Weapon 2 | . . . . . 6 7 6 6 7 7 7 4 . . . . . . . . . . . . . . . . . . 2 3 3 4 1 Piercing Weapon 1 | . . . . . . . . . . . . . 6 5 5 5 5 5 5 5 4 . . . . . . . . . . . . . . Naked Turns . | . . . . . . . . . . . . . . . . . . . . . . . . . . . . . . . . . . . . Heaviest Build 138 | 14 36 52 61 70 37 31 38 32 32 32 34 43 34 45 59 53 63 63 59 54 58 71 65 70 64 64 64 65 66 74 78 71 71 70 138 Greatest Support 151 | 40 40 40 60 62 35 35 35 35 35 35 35 35 35 45 61 60 56 71 71 56 71 72 67 82 66 66 89 89 86 91 108 124 145 145 151 Greatest Overweight (x) 10 | . . 1 1 1 1 . 1 . . . . 1 . 1 1 1 1 1 . . 1 1 . 1 . . 1 1 1 . . . . . 10 Average Overweight (x) . | . . . . . . . . . . . . . . . . . . . . . . . . . . . . . . . . . . . . Largest Inventory Capacity 25 | 8 15 20 20 20 20 15 15 15 15 15 15 15 15 15 20 20 20 20 20 20 20 20 20 25 20 20 20 20 20 20 20 20 20 20 20 Average Capacity 17 | 7 14 15 20 20 15 15 15 15 15 15 15 15 15 15 16 20 20 20 20 20 20 20 20 20 20 20 20 20 20 20 20 20 20 20 19 Most Carried 20 | 6 15 16 20 20 20 15 15 15 15 15 15 15 15 15 20 20 20 20 20 20 20 20 20 20 20 20 20 20 20 20 20 20 20 19 20 Average Carried 17 | 3 13 15 19 19 14 15 14 14 15 15 14 14 15 14 15 20 19 19 19 19 20 19 20 19 20 20 19 20 19 19 19 19 19 18 16 Final Capacity 20 | 8 15 20 20 20 15 15 15 15 15 15 15 15 15 15 20 20 20 20 20 20 20 20 20 20 20 20 20 20 20 20 20 20 20 20 5 Final Carried 20 | 6 15 16 20 20 15 15 15 15 15 15 15 15 15 15 20 20 20 20 20 20 20 20 20 20 20 20 20 20 20 20 20 20 19 19 5 Class Distribution -------------------- 34% | Hacker-Mutant 27% | Wizard-Mutant 10% | Mutant 5% | Scavenger-Mutant 4% | Wizard-Sprinter Dominant Class ---------------- Mutant | -10/Materials Mutant | -10/Mines Mutant | -9/Materials Scavenger-Mutant | -8/Materials Hacker-Mutant | -7/Factory Scavenger-Mutant | -7/Waste Hacker-Mutant | -7/Factory Hacker-Mutant | -7/Lower Caves Hacker-Mutant | -7/Lower Caves Hacker-Mutant | -7/Data Miner Hacker-Mutant | -6/Proximity Caves Hacker-Mutant | -6/Factory Hacker-Mutant | -6/Waste Hacker-Mutant | -6/Factory Wizard-Mutant | -5/Factory Wizard-Mutant | -5/Waste Wizard-Mutant | -5/Factory Wizard-Mutant | -5/Upper Caves Wizard-Mutant | -5/Upper Caves Wizard-Mutant | -5/Zhirov Hacker-Mutant | -4/Proximity Caves Fabricator-Mutant | -4/Factory Fabricator-Sprinter | -4/Waste Wizard-Sprinter | -4/Factory Wizard-Sprinter | -4/Upper Caves Wizard-Sprinter | -4/Upper Caves Wizard-Sprinter | -4/Warlord Wizard-Mutant | -3/Proximity Caves Fabricator-Scout | -3/Research Fabricator-Scout | -3/Quarantine Wizard-Mutant | -2/Research Wizard-Gladiator | -2/Testing Machinist-Gladiator | -2/Section 7 Machinist-Scout | -1/Access Machinist-Sprinter | -1/Command Resources | -11 -10 -10 -9 -8 -7 -7 -7 -7 -7 -7 -6 -6 -6 -6 -5 -5 -5 -5 -5 -5 -4 -4 -4 -4 -4 -4 -4 -3 -3 -3 -2 -2 -2 -1 -1 ----------- Run | Scr Mat Min Mat Mat Fac Was Fac Low Low Dat Pro Fac Was Fac Fac Was Fac Upp Upp Zhi Pro Fac Was Fac Upp Upp War Pro Res Qua Res Tes Sec Acc Com Matter Collected 12231 | 242 472 36 714 761 454 . 663 42 36 . 74 962 29 1117 942 . 406 206 399 . 181 535 . 1204 50 . 30 195 143 134 319 584 595 72 634 Remotely . | . . . . . . . . . . . . . . . . . . . . . . . . . . . . . . . . . . . . Salvage Created 12324 | . 657 62 1132 1288 526 . 626 . . . 37 987 . 933 1266 . 374 193 156 . 178 447 . 1349 . . . . 83 134 . 972 655 72 197 Parts 745 | . 53 13 71 70 34 . 41 . . . 1 51 . 60 91 . 22 6 2 . . 16 . 77 . . . . 3 13 . 72 36 5 8 Haulers Intercepted 10 | . 2 . 3 2 . . 2 . . . . . . . . . . . . . . . . 1 . . . . . . . . . . . Recyclers Shooed 8 | . . . 1 2 . . . . . . . . . 3 . . . . . . . . . 1 . . . . . 1 . . . . . Parts Field Recycled . | . . . . . . . . . . . . . . . . . . . . . . . . . . . . . . . . . . . . Retrieved Matter . | . . . . . . . . . . . . . . . . . . . . . . . . . . . . . . . . . . . . Parts Self-Destructed 39 | . . . . . . . . . . . . . . . . . . 13 1 . . . . . . . 20 5 . . . . . . . Prevented 5 | . . . . . . . . . . . . . . . . . . . 2 . . . . . . . 3 . . . . . . . . Kills | -11 -10 -10 -9 -8 -7 -7 -7 -7 -7 -7 -6 -6 -6 -6 -5 -5 -5 -5 -5 -5 -4 -4 -4 -4 -4 -4 -4 -3 -3 -3 -2 -2 -2 -1 -1 ------- Run | Scr Mat Min Mat Mat Fac Was Fac Low Low Dat Pro Fac Was Fac Fac Was Fac Upp Upp Zhi Pro Fac Was Fac Upp Upp War Pro Res Qua Res Tes Sec Acc Com Combat Hostiles Destroyed 199 | . 20 6 19 24 10 . 6 . . . . 12 . 13 20 . 3 5 3 . . 6 . 28 . . . . 1 2 . 14 5 . 2 Melee 49 | . . . . . 6 . 6 . . . . 2 . 4 7 . 3 . 1 . . . . . . . . . . . . 14 5 . 1 Guns 51 | . 14 4 16 17 . . . . . . . . . . . . . . . . . . . . . . . . . . . . . . . Cannons 17 | . . . . . . . . . . . . . . . . . . . . . . 5 . 9 . . . . . 2 . . . . 1 AOE 81 | . 6 2 3 7 4 . . . . . . 10 . 9 13 . . 5 2 . . 1 . 19 . . . . . . . . . . . Classes Destroyed 19 | . 5 . 4 2 1 . 2 . . . 1 . . . . . . . . . . . . 1 . . . . . . . 1 1 . 1 Worker 25 | . 2 . 2 . 1 . 1 . . . . 3 . 7 1 . 2 . . . . 1 . 4 . . . . . . . . . 1 . Builder 16 | . . . 1 2 1 . 1 . . . . 1 . 2 1 . . . . . . . . 3 . . . . . . . 2 1 1 . Tunneler 7 | . . . . . . . 2 . . . . 1 . 1 . . 1 . . . . 1 . 1 . . . . . . . . . . . Hauler 10 | . 2 . 3 2 . . 2 . . . . . . . . . . . . . . . . 1 . . . . . . . . . . . Recycler 21 | . . . 1 . 1 . 1 . . . . 5 . 3 4 . 1 . . . . 1 . 3 . . . . . . . . 1 . . Minesweeper 1 | . . . . . . . . . . . 1 . . . . . . . . . . . . . . . . . . . . . . . . Mechanic 1 | . . . . . . . . . . . . . . . . . . . . . . . . 1 . . . . . . . . . . . Operator 10 | . 2 . 1 2 1 . 1 . . . . . . 1 1 . . . . . . . . . . . . . . . . . . 1 . Drone 1 | . . . . . . . . . . . . . . . . . . . . . . . . . . . . . . . . 1 . . . Watcher 23 | . . . . 2 1 . 2 . . . . 5 . 4 5 . 2 . . . . . . . . . . . . . . 1 1 . . Swarmer 60 | . 9 6 . . 4 . . . . . . 10 . 3 10 . . . . . . 1 . 17 . . . . . . . . . . . Grunt 57 | . 11 . 11 19 2 . 1 . . . . . . 4 3 . . 4 1 . . . . 1 . . . . . . . . . . . Brawler 2 | . . . . 1 . . . . . . . . . . . . . 1 . . . . . . . . . . . . . . . . . Duelist 1 | . . . 1 . . . . . . . . . . . . . . . . . . . . . . . . . . . . . . . . Researcher 2 | . . . . . . . . . . . . . . . . . . . . . . . . . . . . . . . . . 2 . . Sentry 15 | . . . 7 4 . . . . . . . . . . . . . . . . . . . 2 . . . . 1 . . . 1 . . Hunter 12 | . . . . . . . 3 . . . . . . 2 1 . . . 2 . . . . 2 . . . . . . . 2 . . . Programmer 50 | . . . . . 4 . 2 . . . . 2 . 4 6 . 3 . . . . 5 . 6 . . . . . 2 . 11 4 . 1 Combat Programmer 1 | . . . . . . . . . . . . . . . . . . . . . . . . . . . . . . . . . . . 1 Packrat 1 | . . . . . . . . . . . . . . . . . . . 1 . . . . . . . . . . . . . . . . Butcher 1 | . . . . . . . . . . . . . . . . . . . . . . . . . . . . . . . . . . . 1 Knight 1 | . . . . . . . . . . . . . . . . . . . . . . . . . . . . . . . . . . . 1 Best Kill Streak 10 | . 8 3 6 6 4 . 2 . . . 1 4 . 10 5 . 3 4 2 . . 2 . 8 . . . . 1 2 . 3 3 1 1 Combat Bots Only 7 | . 6 3 4 4 4 . 2 . . . . 4 . 7 5 . 2 4 2 . . 2 . 5 . . . . 1 2 . 3 2 . 1 Max Kills in Single Turn 5 | . 2 2 2 2 2 . 1 . . . 1 3 . 4 5 . 1 2 1 . . 2 . 3 . . . . 1 1 . 1 1 1 1 Gunslinging . | . . . . . . . . . . . . . . . . . . . . . . . . . . . . . . . . . . . . Exploded 5 | . 2 2 1 2 2 . . . . . . 3 . 4 5 . . 2 1 . . 1 . 3 . . . . . . . . . . . Melee 1 | . . . . . 1 . 1 . . . . 1 . 1 1 . 1 . 1 . . . . . . . . . . . . 1 1 . 1 Uniques/NPCs Destroyed . | . . . . . . . . . . . . . . . . . . . . . . . . . . . . . . . . . . . . Combat | -11 -10 -10 -9 -8 -7 -7 -7 -7 -7 -7 -6 -6 -6 -6 -5 -5 -5 -5 -5 -5 -4 -4 -4 -4 -4 -4 -4 -3 -3 -3 -2 -2 -2 -1 -1 -------- Run | Scr Mat Min Mat Mat Fac Was Fac Low Low Dat Pro Fac Was Fac Fac Was Fac Upp Upp Zhi Pro Fac Was Fac Upp Upp War Pro Res Qua Res Tes Sec Acc Com Damage Taken 18364 | . 670 128 740 1835 674 . 455 . . 45 . 478 . 544 1441 38 174 . 97 . 177 382 . 948 . . . 95 73 50 58 1324 894 210 6834 Core 3477 | . 113 7 87 178 90 . 49 . . . . 44 . 143 362 . 37 . . . 84 162 . 224 . . . . 43 25 24 142 48 . 1615 Absorbed by Shields 1169 | . . . . . . . . . . . . . . . . . . . . . . . . . . . . . . . . . 96 . 1073 Redirected to Shielding 612 | . . . . . . . . . . . . 69 . . 93 . 17 . . . . 33 . 114 . . . . . . . 139 48 . 99 Regen/Repaired (Parts) 4843 | . . . 61 46 129 . 169 . . . . 260 . 216 707 . 174 . . . . . . 160 . . . . . 72 23 862 443 274 1247 Core Remaining (%) 74 | 100 . 52 78 67 . . . . . . 80 . . 78 . . . . . . 51 . . . . . . 66 . 94 . . 77 . . Volleys Fired 608 | . 57 8 66 90 3 . . 2 . . . 12 . 14 12 . 2 6 9 . 1 50 . 111 10 . 2 22 28 46 3 9 6 . 39 Largest 2 | . 2 2 2 2 1 . . 1 . . . 1 . 1 1 . 1 1 1 . 1 1 . 1 1 . 1 1 1 1 1 1 1 . 2 Hottest 183 | . 112 112 112 122 36 . . 36 . . . 80 . 80 80 . 80 80 80 . 80 105 . 105 35 . 35 105 105 105 35 150 50 . 183 Shots Fired 800 | . 108 15 118 163 3 . . 2 . . . 11 . 14 12 . 2 6 9 . 1 50 . 110 10 . 2 22 28 47 3 9 6 . 49 Gun 405 | . 103 14 114 155 . . . . . . . . . . . . . . . . . . . . . . . . . . . . . . 19 Cannon 293 | . . . . . . . . . . . . . . . . . . . . . . 48 . 93 10 . 2 22 28 47 3 9 6 . 25 Launcher 102 | . 5 1 4 8 3 . . 2 . . . 11 . 14 12 . 2 6 9 . 1 2 . 17 . . . . . . . . . . 5 Special . | . . . . . . . . . . . . . . . . . . . . . . . . . . . . . . . . . . . . Kinetic 205 | . 44 . 60 82 . . . . . . . . . . . . . . . . . . . . . . . . . . . . . . 19 Thermal 493 | . 59 14 54 73 . . . . . . . . . . . . . . . . . 48 . 93 10 . 2 22 28 47 3 9 6 . 25 Explosive 102 | . 5 1 4 8 3 . . 2 . . . 11 . 14 12 . 2 6 9 . 1 2 . 17 . . . . . . . . . . 5 Electromagnetic . | . . . . . . . . . . . . . . . . . . . . . . . . . . . . . . . . . . . . Robot Hit Streak 20 | . 13 2 17 20 1 . . . . . . . . 3 . . . . . . . 8 . 9 . . . . 3 4 . . . . 14 Robot Miss Streak 4 | . 3 3 2 2 2 . . . . . . . . . . . . . . . . 2 . 4 . . . . . 3 . . . . 2 Penetration Max . | . . . . . . . . . . . . . . . . . . . . . . . . . . . . . . . . . . . . Secondary Targets 5 | . 2 . 1 2 . . . . . . . . . . . . . . . . . . . . . . . . . . . . . . . Max Gunslinging Chain 1 | . 1 . 1 1 . . . . . . . . . . . . . . . . . . . . . . . . . . . . . . . Shots Hit Robots 646 | . 64 4 87 122 28 . 32 . . 1 3 31 . 33 44 . 11 . 2 . 4 27 . 39 . . . . 1 5 . 40 19 5 44 Core Hits 412 | . 33 5 39 62 16 . 11 . . . 1 20 . 42 38 . 10 18 9 . 1 9 . 54 . . . . . 3 . 16 6 3 16 Critical Kills 1 | . . . . . . . . . . . . . . . . . . . . . . . . . . . . . 1 . . . . . . Critical Parts Destroyed . | . . . . . . . . . . . . . . . . . . . . . . . . . . . . . . . . . . . . Critical Strikes 30 | . 2 . 3 5 2 . 3 . . . . . . 3 3 . 2 . . . 1 . . . . . . . 1 . . 3 1 . 1 Burn 10 | . 2 . 3 5 . . . . . . . . . . . . . . . . . . . . . . . . . . . . . . . Meltdown 1 | . . . . . . . . . . . . . . . . . . . . . . . . . . . . . 1 . . . . . . Sever 10 | . . . . . 2 . 3 . . . . . . . . . . . . . . . . . . . . . . . . 3 1 . 1 Impale 9 | . . . . . . . . . . . . . . 3 3 . 2 . . . 1 . . . . . . . . . . . . . . Melee Attacks 772 | . . . . . 82 . 105 14 . 34 3 112 4 93 116 . 22 1 9 . 19 1 . . . . . . . . 4 84 43 14 12 Impact . | . . . . . . . . . . . . . . . . . . . . . . . . . . . . . . . . . . . . Slashing 495 | . . . . . 81 . 105 14 . 34 3 101 . . . . . . . . . . . . . . . . . . 4 84 43 14 12 Piercing 275 | . . . . . . . . . . . . 11 4 93 116 . 22 1 9 . 19 . . . . . . . . . . . . . . Sneak Attacks 65 | . . . . . 6 . 9 . . 1 1 12 . 14 7 . 4 . 1 . . 1 . . . . . . . . . 3 4 2 . Combat Hostiles 3 | . . . . . . . . . . . . . . 2 . . . . . . . . . . . . . . . . . 1 . . . Follow-up Attacks . | . . . . . . . . . . . . . . . . . . . . . . . . . . . . . . . . . . . . Damage Inflicted 39994 | . 1527 227 1795 3160 1950 . 2312 . . 108 236 3399 . 4103 3449 . 790 901 702 . 340 1515 . 4491 . . . . 62 316 . 3651 2033 763 2164 Guns 4973 | . 945 87 1405 2151 . . . . . . . . . . . . . . . . . . . . . . . . . . . . . . 385 Cannons 4680 | . . . . . . . . . . . . . . . . . . . . . . 1331 . 1811 . . . . 62 316 . . . . 1160 Explosions 11372 | . 550 140 349 997 377 . . . . . . 997 . 2155 1313 . 158 901 571 . . 184 . 2680 . . . . . . . . . . . Melee 18783 | . . . . . 1573 . 2312 . . 108 236 2402 . 1948 2136 . 632 . 131 . 340 . . . . . . . . . . 3651 1979 716 619 Ramming 186 | . 32 . 41 12 . . . . . . . . . . . . . . . . . . . . . . . . . . . . 54 47 . Kinetic 2361 | . 313 . 692 971 . . . . . . . . . . . . . . . . . . . . . . . . . . . . . . 385 Thermal 7629 | . 632 87 713 1180 . . . . . . . . . 276 . . . . . . . 1331 . 1872 . . . . 62 316 . . . . 1160 Explosive 11035 | . 550 140 349 997 377 . . . . . . 997 . 1879 1313 . 158 901 571 . . 184 . 2619 . . . . . . . . . . . Electromagnetic . | . . . . . . . . . . . . . . . . . . . . . . . . . . . . . . . . . . . . Impact . | . . . . . . . . . . . . . . . . . . . . . . . . . . . . . . . . . . . . Slashing 13390 | . . . . . 1573 . 2312 . . 108 236 2196 . . . . . . . . . . . . . . . . . . . 3651 1979 716 619 Piercing 5393 | . . . . . . . . . . . . 206 . 1948 2136 . 632 . 131 . 340 . . . . . . . . . . . . . . Highest Corruption 29 | . . . 5 . 2 7 8 1 1 1 1 6 6 10 10 15 16 16 16 16 16 4 10 10 6 6 6 . 2 2 . 6 9 . 29 Average Corruption 6 | . . . 5 . 1 6 3 1 1 1 1 5 6 8 3 13 15 16 16 16 16 3 7 4 6 6 6 . 1 2 . 3 3 . 10 Corruption Purged 20 | . . . . . . . 9 . . . . 3 . . 1 . . . . . . . . 7 . . . . . . . . . . . Corruption Blocked 49 | . . . . . . . . . . . . . . . . . . . . . . . . . . . . . . . 34 . . . 15 Effects 514 | . . . 12 . 1 2 38 . . 3 2 63 8 99 54 5 48 19 29 4 13 8 1 43 4 . . . 5 9 . 26 3 . 15 Message Errors 139 | . . . 2 . . 1 7 . . 1 . 20 2 25 16 1 16 6 11 2 2 2 . 12 1 . . . . 1 . 9 . . 2 Matter Fused 129 | . . . 1 . . . 14 . . 2 1 17 1 26 11 1 9 2 5 1 6 3 . 10 . . . . 3 4 . 7 1 . 4 Heat Flow Errors 59 | . . . . . 1 1 5 . . . . 9 1 9 10 . 7 1 2 . 1 1 1 4 1 . . . . 3 . 1 1 . . Energy Discharges 62 | . . . 3 . . . 7 . . . . 7 1 16 4 1 5 3 3 . . . . 5 . . . . 1 . . 3 1 . 2 Parts Rejected 2 | . . . 1 . . . . . . . . . . 1 . . . . . . . . . . . . . . . . . . . . . Data Loss (minor) 67 | . . . 3 . . . 2 . . . 1 7 1 12 4 . 8 4 6 1 2 1 . 5 2 . . . 1 . . 4 . . 3 Data Loss (major) 25 | . . . . . . . 3 . . . . 2 1 4 7 . 2 1 2 . 1 1 . 1 . . . . . . . . . . . Misfires 4 | . . . 1 . . . . . . . . . . . . . . . . . . . . 1 . . . . . 1 . . . . 1 Alerts 16 | . . . 1 . . . . . . . . . 1 6 2 . . 1 . . 1 . . 1 . . . . . . . 2 . . 1 Misdirections 7 | . . . . . . . . . . . . . . . . 2 1 1 . . . . . 2 . . . . . . . . . . 1 Weapon Failures 4 | . . . . . . . . . . . . 1 . . . . . . . . . . . 2 . . . . . . . . . . 1 Overload Shots 53 | . . . . . . . . . . . . . . . . . . . . . . 12 . 20 . . . 1 4 3 . 1 . . 12 Effects 4 | . . . . . . . . . . . . . . . . . . . . . . . . 2 . . . . . . . . . . 2 Energy Bleed 1 | . . . . . . . . . . . . . . . . . . . . . . . . 1 . . . . . . . . . . . Heat Surge 1 | . . . . . . . . . . . . . . . . . . . . . . . . 1 . . . . . . . . . . . Short Circuit 2 | . . . . . . . . . . . . . . . . . . . . . . . . . . . . . . . . . . . 2 Overflow Damage 4295 | . 10 21 . 2 247 . 521 . . . 100 686 . 397 285 . 171 1 59 . 229 171 . 181 . . . . . 80 . 585 496 25 28 Projectiles 315 | . . . . . . . . . . . . . . . . . . . . . . 165 . 70 . . . . . 80 . . . . . Explosions 397 | . 10 21 . 2 19 . . . . . . 35 . 167 25 . . 1 . . . 6 . 111 . . . . . . . . . . . Melee 3583 | . . . . . 228 . 521 . . . 100 651 . 230 260 . 171 . 59 . 229 . . . . . . . . . . 585 496 25 28 Knockbacks 2 | . . . 1 . . . . . . . . . . . . . . . . . . . . . . . . . . . . . . 1 . Impact 2 | . . . 1 . . . . . . . . . . . . . . . . . . . . . . . . . . . . . . 1 . Kinetic . | . . . . . . . . . . . . . . . . . . . . . . . . . . . . . . . . . . . . Secondary . | . . . . . . . . . . . . . . . . . . . . . . . . . . . . . . . . . . . . Self-Inflicted Damage 420 | . 96 33 . 112 . . . . . . . 51 . . . . . . . . . 17 . 61 . . . . . . . . 27 23 . Shots 12 | . 3 1 . 5 . . . . . . . 1 . . . . . . . . . 1 . 1 . . . . . . . . . . . Rammed 21 | . 13 . 2 4 . . . . . . . . . . . . . . . . . . . . . . . . . . . . 1 1 . Targets Rammed 22 | . 13 . 3 4 . . . . . . . . . . . . . . . . . . . . . . . . . . . . 1 1 . Kicked . | . . . . . . . . . . . . . . . . . . . . . . . . . . . . . . . . . . . . Crushed 1 | . . . 1 . . . . . . . . . . . . . . . . . . . . . . . . . . . . . . . . Highest Temperature 408 | . 264 84 180 408 150 174 177 . . . . 272 100 238 240 . 234 100 157 . 124 352 214 404 195 . 5 60 156 235 245 183 157 276 388 Average Temperature 69 | . 76 39 55 102 62 98 70 . . . . 83 52 76 70 . 91 33 41 . 59 102 134 89 66 . 3 23 62 107 21 36 8 70 101 Received Heat Transfer 2283 | . 198 . 285 1008 306 . 36 . . . . 18 . 36 . . . . 36 . . . . 48 . . . 9 9 . 12 . . . 282 Effects 12 | . 2 . . 4 . . . . . . . . . . . . . . . . . 2 . 3 . . . . . . . . . 1 . Shutdowns 1 | . . . . . . . . . . . . . . . . . . . . . . 1 . . . . . . . . . . . . . Energy Bleed 2 | . . . . . . . . . . . . . . . . . . . . . . . . 1 . . . . . . . . . 1 . Interference 7 | . 2 . . 3 . . . . . . . . . . . . . . . . . 1 . 1 . . . . . . . . . . . Matter Decay 1 | . . . . . . . . . . . . . . . . . . . . . . . . 1 . . . . . . . . . . . Short Circuit 1 | . . . . 1 . . . . . . . . . . . . . . . . . . . . . . . . . . . . . . . Siege Activations . | . . . . . . . . . . . . . . . . . . . . . . . . . . . . . . . . . . . . Robots Corrupted . | . . . . . . . . . . . . . . . . . . . . . . . . . . . . . . . . . . . . Combat Hostiles . | . . . . . . . . . . . . . . . . . . . . . . . . . . . . . . . . . . . . Parts Fried 1 | . . . . . . . . . . . . 1 . . . . . . . . . . . . . . . . . . . . . . . Impact Corruptions 1 | . . . . . . . . . . . . . . . . . . . . . . . . . . . . . . . . . . 1 . Robots Melted 2 | . . . . . . . . . . . . . . . . . . . . . . 1 . . . . . . 1 . . . . . . Combat Hostiles 1 | . . . . . . . . . . . . . . . . . . . . . . . . . . . . . 1 . . . . . . Parts Melted 20 | . . . 3 3 . . . . . . . . . . . . . . . . . 6 . 7 . . . . 1 . . . . . . Heat Transferred 10757 | . 1591 185 1739 2553 . . . . . . . . . 200 . . . . . . . 1470 . 2250 . . . . 80 340 . . . . 349 Parts Sabotaged . | . . . . . . . . . . . . . . . . . . . . . . . . . . . . . . . . . . . . Parts Stolen . | . . . . . . . . . . . . . . . . . . . . . . . . . . . . . . . . . . . . Parts Stripped . | . . . . . . . . . . . . . . . . . . . . . . . . . . . . . . . . . . . . Power Chain Reactions . | . . . . . . . . . . . . . . . . . . . . . . . . . . . . . . . . . . . . Missiles Intercepted 8 | . . . . . . . . . . . . . . . . . . . . . . . . . . . . . . . . . . . 8 Alert | -11 -10 -10 -9 -8 -7 -7 -7 -7 -7 -7 -6 -6 -6 -6 -5 -5 -5 -5 -5 -5 -4 -4 -4 -4 -4 -4 -4 -3 -3 -3 -2 -2 -2 -1 -1 ------- Run | Scr Mat Min Mat Mat Fac Was Fac Low Low Dat Pro Fac Was Fac Fac Was Fac Upp Upp Zhi Pro Fac Was Fac Upp Upp War Pro Res Qua Res Tes Sec Acc Com Peak Influence 593 | . 433 212 517 413 222 120 223 . . . . 367 92 593 400 44 189 . . . . 185 68 564 . . . . 218 240 72 197 208 326 252 Initial 195 | . . 30 82 195 187 75 84 . . . . 2 51 40 35 29 23 . . . . . 38 47 . . . . 30 122 69 15 110 112 167 Average 128 | . 173 177 299 233 105 93 81 . . . . 95 61 157 113 31 75 . . . . 65 55 232 . . . . 62 135 31 63 116 196 204 Maximum Alert Level 2 | . 2 1 2 2 1 . 1 . . . . 1 . 2 2 . . . . . . . . 2 . . . . 1 1 . . 1 1 1 Low Security (%) 80 | 100 78 48 37 35 82 100 98 . . . . 91 100 80 84 100 100 . . . . 100 100 40 . . . . 94 75 100 100 99 52 40 Level 1 14 | . 7 51 23 61 17 . 1 . . . . 8 . 1 15 . . . . . . . . 45 . . . . 5 24 . . . 47 60 Level 2 5 | . 13 . 39 2 . . . . . . . . . 17 . . . . . . . . . 13 . . . . . . . . . . . Level 3 . | . . . . . . . . . . . . . . . . . . . . . . . . . . . . . . . . . . . . Level 4 . | . . . . . . . . . . . . . . . . . . . . . . . . . . . . . . . . . . . . Level 5 . | . . . . . . . . . . . . . . . . . . . . . . . . . . . . . . . . . . . . High Security . | . . . . . . . . . . . . . . . . . . . . . . . . . . . . . . . . . . . . Max Security . | . . . . . . . . . . . . . . . . . . . . . . . . . . . . . . . . . . . . Squads Dispatched 140 | . 3 . 2 7 9 . 11 . . . . 20 . 23 13 . 5 . . . . 10 . 10 . . . . 4 4 . 10 5 1 3 Investigation 68 | . 2 . 1 1 7 . 7 . . . . 12 . 11 8 . 4 . . . . 3 . 4 . . . . 4 2 . 1 . . 1 Extermination 34 | . . . . . 1 . 2 . . . . 6 . 5 4 . 1 . . . . 4 . 3 . . . . . 2 . 5 1 . . Reinforcement 27 | . 1 . 1 3 1 . 2 . . . . 2 . 1 1 . . . . . . 3 . 2 . . . . . . . 3 4 1 2 Assault 2 | . . . . . . . . . . . . . . . . . . . . . . . . 1 . . . . . . . 1 . . . Garrison 9 | . . . . 3 . . . . . . . . . 6 . . . . . . . . . . . . . . . . . . . . . Intercept . | . . . . . . . . . . . . . . . . . . . . . . . . . . . . . . . . . . . . Searches Triggered . | . . . . . . . . . . . . . . . . . . . . . . . . . . . . . . . . . . . . Construction Impeded 3 | . . . . 2 . . . . . . . . . 1 . . . . . . . . . . . . . . . . . . . . . Haulers Reinforced 2 | . . . . . . . 2 . . . . . . . . . . . . . . . . . . . . . . . . . . . . Active Scanning Responses . | . . . . . . . . . . . . . . . . . . . . . . . . . . . . . . . . . . . . Cargo Convoy Interrupts . | . . . . . . . . . . . . . . . . . . . . . . . . . . . . . . . . . . . . Stealth | -11 -10 -10 -9 -8 -7 -7 -7 -7 -7 -7 -6 -6 -6 -6 -5 -5 -5 -5 -5 -5 -4 -4 -4 -4 -4 -4 -4 -3 -3 -3 -2 -2 -2 -1 -1 --------- Run | Scr Mat Min Mat Mat Fac Was Fac Low Low Dat Pro Fac Was Fac Fac Was Fac Upp Upp Zhi Pro Fac Was Fac Upp Upp War Pro Res Qua Res Tes Sec Acc Com Distress Signals 41 | . 4 . 5 2 1 . 3 . . . . 1 . 2 . . 1 . 1 . . . . 6 . . . . 1 1 3 2 1 3 4 Communications Jammed 12 | . . . . . . . . . . . . . . . . . . . . . . . . 12 . . . . . . . . . . . Distress Signals 12 | . . . . . . . . . . . . . . . . . . . . . . . . 12 . . . . . . . . . . . Times Spotted 516 | . 32 6 32 37 24 5 21 . . 4 . 26 6 36 27 6 11 9 9 . 1 16 4 44 . . . 12 13 7 2 24 16 11 75 Peak Tracking Total 62 | . 5 3 6 6 7 5 4 . . 4 . 3 6 8 3 6 4 7 5 . 1 5 4 7 . . . 10 8 2 1 7 5 12 62 Tactical Retreats 48 | . 1 . 2 . 3 . 4 . . . . 3 1 5 3 . 2 1 1 . . . . 9 . . . 1 3 . . 3 2 2 2 Traps | -11 -10 -10 -9 -8 -7 -7 -7 -7 -7 -7 -6 -6 -6 -6 -5 -5 -5 -5 -5 -5 -4 -4 -4 -4 -4 -4 -4 -3 -3 -3 -2 -2 -2 -1 -1 ------- Run | Scr Mat Min Mat Mat Fac Was Fac Low Low Dat Pro Fac Was Fac Fac Was Fac Upp Upp Zhi Pro Fac Was Fac Upp Upp War Pro Res Qua Res Tes Sec Acc Com Traps Triggered 35 | . 1 . 1 1 2 . 4 . . . . 4 . 1 6 . 3 . . . . 3 . 3 . . . . 1 . . 1 1 2 1 Indirectly . | . . . . . . . . . . . . . . . . . . . . . . . . . . . . . . . . . . . . Trap Hack Attempts . | . . . . . . . . . . . . . . . . . . . . . . . . . . . . . . . . . . . . Triggered . | . . . . . . . . . . . . . . . . . . . . . . . . . . . . . . . . . . . . Disarmed 1 | . . . . . . . 1 . . . . . . . . . . . . . . . . . . . . . . . . . . . . Reprogrammed 16 | . . . . . . . . . . . . 6 . . 6 . . . . . . 4 . . . . . . . . . . . . . Reused 8 | . . . . . . . . . . . . 5 . . 1 . . . . . . 2 . . . . . . . . . . . . . Traps Extracted . | . . . . . . . . . . . . . . . . . . . . . . . . . . . . . . . . . . . . Installed 3 | . . . . . . . . . . . . 3 . . . . . . . . . . . . . . . . . . . . . . . Triggered 14 | . . . . . . . . . . . . 5 . . 1 . . . 1 . . 2 . . . . 5 . . . . . . . . Most Traps Carried 4 | . . . . . . . . . . . 4 4 . . . . . . . . . . . . . . . . . . . . . . . Machines | -11 -10 -10 -9 -8 -7 -7 -7 -7 -7 -7 -6 -6 -6 -6 -5 -5 -5 -5 -5 -5 -4 -4 -4 -4 -4 -4 -4 -3 -3 -3 -2 -2 -2 -1 -1 ---------- Run | Scr Mat Min Mat Mat Fac Was Fac Low Low Dat Pro Fac Was Fac Fac Was Fac Upp Upp Zhi Pro Fac Was Fac Upp Upp War Pro Res Qua Res Tes Sec Acc Com Machines Disabled 50 | . 1 1 . 3 . . . 1 . 1 . 5 . 10 2 . . . 1 . . . . 8 . . . . 1 6 . 3 6 . 1 Max in Single Turn 4 | . 1 1 . 1 . . . 1 . 1 . 3 . 4 1 . . . 1 . . . . 4 . . . . 1 1 . 1 1 . 1 Garrison Access 19 | . . . . . 3 . 1 . . . . 2 . 2 4 . 1 . . . . . . 2 . . . . 2 . 1 . . 1 . Machines Sabotaged . | . . . . . . . . . . . . . . . . . . . . . . . . . . . . . . . . . . . . Garrisons Compromised . | . . . . . . . . . . . . . . . . . . . . . . . . . . . . . . . . . . . . Overloaded Fab Kills . | . . . . . . . . . . . . . . . . . . . . . . . . . . . . . . . . . . . . Hacking | -11 -10 -10 -9 -8 -7 -7 -7 -7 -7 -7 -6 -6 -6 -6 -5 -5 -5 -5 -5 -5 -4 -4 -4 -4 -4 -4 -4 -3 -3 -3 -2 -2 -2 -1 -1 --------- Run | Scr Mat Min Mat Mat Fac Was Fac Low Low Dat Pro Fac Was Fac Fac Was Fac Upp Upp Zhi Pro Fac Was Fac Upp Upp War Pro Res Qua Res Tes Sec Acc Com Machines Accessed 261 | . 7 . 6 9 27 . 23 . 1 4 . 27 . 28 36 . 9 . 1 4 . 11 . 20 . . 2 . 8 10 2 9 8 6 3 Terminals 132 | . 6 . 3 5 9 . 10 . . . . 15 . 15 16 . 4 . . . . 9 . 11 . . . . 2 7 . 5 7 5 3 Fabricators 38 | . . . . . 6 . 5 . . . . 6 . 6 6 . 2 . . . . 2 . 2 . . . . 2 . . 1 . . . Repair Stations 23 | . . . 2 1 3 . 2 . . . . 3 . 3 3 . 1 . . . . . . 1 . . . . . 1 1 2 . . . Recycling Units 21 | . 1 . 1 1 4 . 3 . . . . . . 1 5 . 1 . . . . . . 2 . . . . 2 . . . . . . Scanalyzers 14 | . . . . 1 1 . 2 . . . . 1 . 1 2 . . . . . . . . 2 . . . . . 2 . 1 1 . . Garrison Access 21 | . . . . 1 4 . 1 . . . . 2 . 2 4 . 1 . . . . . . 2 . . . . 2 . 1 . . 1 . Total Hacks 935 | . 21 . 13 19 57 . 81 . 1 26 . 110 . 111 138 . 39 . 1 17 . 61 . 98 . . 2 . 21 33 3 49 19 10 5 Successful 731 | . 7 . 9 9 44 . 61 . 1 26 . 80 . 92 128 . 29 . 1 17 . 46 . 79 . . 2 . 17 23 3 38 11 6 2 Failed 203 | . 14 . 4 10 13 . 20 . . . . 30 . 19 10 . 10 . . . . 15 . 19 . . . . 4 10 . 10 8 4 3 Catastrophic 28 | . 3 . . . 2 . . . . . . 5 . 4 2 . 1 . . . . 1 . 2 . . . . 2 1 . 3 . . 2 Database Lockouts 1 | . . . . . . . . . . . . . . . . . . . . . . . . . . . . . . . . 1 . . . Manual 441 | . 16 . 6 8 25 . 34 . . . . 62 . 51 65 . 16 . . . . 36 . 59 . . 1 . 9 23 . 16 11 2 1 Terminals 492 | . 20 . 8 10 24 . 36 . . . . 60 . 59 70 . 18 . . . . 47 . 61 . . . . 6 23 . 20 16 9 5 Fabricators 187 | . . . . . 12 . 24 . . . . 35 . 31 27 . 9 . . . . 14 . 12 . . . . 11 . . 12 . . . Repair Stations 101 | . . . 4 3 9 . 8 . . . . 10 . 14 22 . 8 . . . . . . 4 . . . . . 3 2 14 . . . Recycling Units 31 | . 1 . 1 1 5 . 7 . . . . . . 1 8 . 3 . . . . . . 2 . . . . 2 . . . . . . Scanalyzers 52 | . . . . 2 3 . 5 . . . . 3 . 4 6 . . . . . . . . 16 . . . . . 7 . 3 3 . . Garrison Access 25 | . . . . 3 4 . 1 . . . . 2 . 2 5 . 1 . . . . . . 3 . . . . 2 . 1 . . 1 . Terminal Hacks 270 | . 4 . 3 2 9 . 20 . 1 26 . 23 . 28 41 . 9 . 1 17 . 23 . 30 . . 2 . 2 5 . 8 9 5 2 Record 17 | . . . . . . . . . . 11 . . . . . . . . 1 5 . . . . . . . . . . . . . . . Part Schematic 53 | . . . . . 2 . 2 . . 9 . 9 . 3 8 . 3 . . 4 . 4 . 3 . . . . 2 1 . 3 . . . Robot Schematic 3 | . . . . . . . . . . 3 . . . . . . . . . . . . . . . . . . . . . . . . . Robot Analysis 17 | . 1 . . . . . 2 . . . . . . . 2 . 1 . . 4 . 2 . 4 . . . . . . . . . 1 . Prototype ID Bank 17 | . . . 1 . . . . . . 3 . . . 1 3 . . . . 4 . . . 4 . . . . . . . 1 . . . Open Door 10 | . . . . . . . . . 1 . . . . . . . . . . . . . . . . . 2 . . . . . 4 3 . Branch Access Points 6 | . . . . . . . 1 . . . . 1 . 1 . . 1 . . . . . . 2 . . . . . . . . . . . Machine Index 3 | . . . . . . . . . . . . . . . 1 . . . . . . 1 . 1 . . . . . . . . . . . Terminal Index 7 | . . . . . 1 . 1 . . . . 1 . 1 1 . 1 . . . . . . 1 . . . . . . . . . . . Fabricator Index 4 | . . . . . . . . . . . . . . . . . 1 . . . . 1 . 2 . . . . . . . . . . . Repair Station Index 1 | . . . . . . . 1 . . . . . . . . . . . . . . . . . . . . . . . . . . . . Scanalyzer Index 1 | . . . . . . . 1 . . . . . . . . . . . . . . . . . . . . . . . . . . . . Alert Level 51 | . 1 . 2 . 4 . 4 . . . . 4 . 11 8 . . . . . . 7 . 5 . . . . . 1 . 2 2 . . Unreport Threat 29 | . 2 . . 1 1 . 2 . . . . 3 . 6 3 . . . . . . . . 6 . . . . . 1 . 2 1 1 . Locate Traps 11 | . . . . . 1 . 3 . . . . . . . 4 . . . . . . 2 . 1 . . . . . . . . . . . Disarm Traps 2 | . . . . . . . 2 . . . . . . . . . . . . . . . . . . . . . . . . . . . . Reprogram Traps 3 | . . . . . . . . . . . . 1 . . 1 . . . . . . 1 . . . . . . . . . . . . . Patrol Status 4 | . . . . . . . . . . . . . . . 3 . 1 . . . . . . . . . . . . . . . . . . Recall Investigation 1 | . . . . . . . . . . . . . . 1 . . . . . . . . . . . . . . . . . . . . . Recall Extermination 11 | . . . . . . . . . . . . 3 . 2 2 . . . . . . 2 . 1 . . . . . 1 . . . . . Recall Reinforcements 4 | . . . . . . . . . . . . . . . . . . . . . . 2 . . . . . . . . . . 2 . . Hauler Manifests 4 | . . . . 1 . . 1 . . . . . . 1 . . . . . . . . . . . . . . . 1 . . . . . Zone Layout 9 | . . . . . . . . . . . . 1 . 1 5 . 1 . . . . 1 . . . . . . . . . . . . . Disengage Seal 2 | . . . . . . . . . . . . . . . . . . . . . . . . . . . . . . . . . . . 2 Fabricator Hacks 125 | . . . . . 5 . 15 . . . . 24 . 20 18 . 5 . . . . 11 . 9 . . . . 7 . . 11 . . . Network Status 13 | . . . . . 1 . 2 . . . . 3 . 2 2 . 1 . . . . 1 . . . . . . 1 . . . . . . Load Schematic 74 | . . . . . 4 . 9 . . . . 13 . 12 11 . 3 . . . . 6 . 6 . . . . 4 . . 6 . . . Build 38 | . . . . . . . 4 . . . . 8 . 6 5 . 1 . . . . 4 . 3 . . . . 2 . . 5 . . . Repair Station Hacks 96 | . . . 3 3 9 . 6 . . . . 10 . 14 22 . 8 . . . . . . 4 . . . . . 2 2 13 . . . Scan Component 53 | . . . 2 2 6 . 3 . . . . 6 . 8 11 . 4 . . . . . . 2 . . . . . 1 1 7 . . . Repair 43 | . . . 1 1 3 . 3 . . . . 4 . 6 11 . 4 . . . . . . 2 . . . . . 1 1 6 . . . Recycling Unit Hacks 20 | . 1 . 1 1 4 . 2 . . . . . . 1 5 . 1 . . . . . . 2 . . . . 2 . . . . . . Retrieve Components 20 | . 1 . 1 1 4 . 2 . . . . . . 1 5 . 1 . . . . . . 2 . . . . 2 . . . . . . Scanalyzer 44 | . . . . 1 1 . 4 . . . . 1 . 4 6 . . . . . . . . 16 . . . . . 7 . 2 2 . . Insert Component 27 | . . . . 1 1 . 2 . . . . 1 . 2 3 . . . . . . . . 8 . . . . . 6 . 1 2 . . Analyze 17 | . . . . . . . 2 . . . . . . 2 3 . . . . . . . . 8 . . . . . 1 . 1 . . . Garrison Access Hacks 19 | . . . . . 3 . 1 . . . . 2 . 2 4 . 1 . . . . . . 2 . . . . 2 . 1 . . 1 . Seal Access 19 | . . . . . 3 . 1 . . . . 2 . 2 4 . 1 . . . . . . 2 . . . . 2 . 1 . . 1 . Unauthorized Hacks 157 | . 2 . 2 2 13 . 13 . . . . 20 . 23 32 . 5 . . . . 12 . 16 . . . . 4 9 . 4 . . . Terminals 99 | . 2 . 2 2 7 . 5 . . . . 12 . 13 20 . 2 . . . . 9 . 13 . . . . . 9 . 3 . . . Track 10 | . . . . . . . 1 . . . . . . 1 4 . . . . . . 2 . 1 . . . . . 1 . . . . . Assimilate 18 | . 1 . . 1 1 . 1 . . . . 4 . 3 2 . 1 . . . . 1 . . . . . . . 2 . 1 . . . Botnet 56 | . . . 1 . 5 . 3 . . . . 7 . 7 13 . 1 . . . . 5 . 8 . . . . . 5 . 1 . . . Disrupt 4 | . . . . . . . . . . . . . . 1 . . . . . . . . . 3 . . . . . . . . . . . Operators 11 | . 1 . 1 1 1 . . . . . . 1 . 1 1 . . . . . . 1 . 1 . . . . . 1 . 1 . . . Fabricators 53 | . . . . . 6 . 6 . . . . 8 . 10 9 . 3 . . . . 3 . 3 . . . . 4 . . 1 . . . Prioritize 16 | . . . . . . . 1 . . . . 3 . 3 3 . 1 . . . . 1 . 1 . . . . 2 . . 1 . . . Liberate 1 | . . . . . . . . . . . . . . 1 . . . . . . . . . . . . . . . . . . . . . Recompile 36 | . . . . . 6 . 5 . . . . 5 . 6 6 . 2 . . . . 2 . 2 . . . . 2 . . . . . . Repair Stations . | . . . . . . . . . . . . . . . . . . . . . . . . . . . . . . . . . . . . Recycling Units 5 | . . . . . . . 2 . . . . . . . 3 . . . . . . . . . . . . . . . . . . . . Reject 2 | . . . . . . . 1 . . . . . . . 1 . . . . . . . . . . . . . . . . . . . . Recyclers 1 | . . . . . . . . . . . . . . . 1 . . . . . . . . . . . . . . . . . . . . Mask 2 | . . . . . . . 1 . . . . . . . 1 . . . . . . . . . . . . . . . . . . . . Scanalyzers . | . . . . . . . . . . . . . . . . . . . . . . . . . . . . . . . . . . . . Garrison Access . | . . . . . . . . . . . . . . . . . . . . . . . . . . . . . . . . . . . . Data Cores Recovered 3 | . . . . . . . . . . . . . . 1 1 . . . . . . . . . . . . . . . . . . 1 . Used 1 | . . . . . . . . . . . . . . 1 . . . . . . . . . . . . . . . . . . . . . Hacking Detections 183 | . 7 . 5 5 18 . 20 . . . . 21 . 23 23 . 7 . . . . 10 . 14 . . . . 4 8 1 8 5 2 2 Full Trace Events 25 | . 1 . . 1 1 . 2 . . . . 6 . 5 1 . 1 . . . . . . 2 . . . . 2 1 . 1 . . 1 Feedback Events 7 | . . . . . . . 1 . . . . . . 4 . . . . . . . . . 1 . . . . 1 . . . . . . Corruption 4 | . . . . . . . 1 . . . . . . 2 . . . . . . . . . . . . . . 1 . . . . . . Hackware Fried 3 | . . . . . . . . . . . . . . 2 . . . . . . . . . 1 . . . . . . . . . . . Feedback Blocked 1 | . . . . . . . . . . . . 1 . . . . . . . . . . . . . . . . . . . . . . . Robot Schematics Acquired 8 | . . . . . . . . . . 3 . . . . . . . . . . . . . . . . . . . . . 2 3 . . Robots Built . | . . . . . . . . . . . . . . . . . . . . . . . . . . . . . . . . . . . . Authchips . | . . . . . . . . . . . . . . . . . . . . . . . . . . . . . . . . . . . . Time . | . . . . . . . . . . . . . . . . . . . . . . . . . . . . . . . . . . . . Total Robot Build Rating . | . . . . . . . . . . . . . . . . . . . . . . . . . . . . . . . . . . . . Part Schematics Acquired 68 | . . . . . 2 . 3 . . 9 . 9 . 5 11 . 3 . . 4 . 4 . 8 . . . . 2 2 . 3 3 . . Parts Built 42 | . . . . . . . 5 . . . . 8 . 6 5 . 1 . . . . 4 . 3 . . . . 4 . . 6 . . . Authchips 36 | . . . . . . . 4 . . . . 7 . 6 5 . 1 . . . . 4 . 3 . . . . 2 . . 4 . . . Time 1863 | . . . . . . . 205 . . . . 428 . 183 266 . 26 . . . . 156 . 148 . . . . 46 . . 405 . . . Total Part Build Rating 267 | . . . . . . . 23 . . . . 47 . 36 25 . 6 . . . . 26 . 23 . . . . 36 . . 45 . . . Parts Repaired 43 | . . . 1 1 3 . 3 . . . . 4 . 6 11 . 4 . . . . . . 2 . . . . . 1 1 6 . . . Time 2164 | . . . 32 38 142 . 48 . . . . 238 . 387 439 . 331 . . . . . . 88 . . . . . 29 37 355 . . . Parts Recycled . | . . . . . . . . . . . . . . . . . . . . . . . . . . . . . . . . . . . . Recycled Matter . | . . . . . . . . . . . . . . . . . . . . . . . . . . . . . . . . . . . . Retrieved Matter . | . . . . . . . . . . . . . . . . . . . . . . . . . . . . . . . . . . . . Retrieved Components 58 | . 4 . 10 1 9 . 12 . . . . . . . 9 . 1 . . . . . . 10 . . . . 2 . . . . . . Parts Scanalyzed 16 | . . . . . 1 . 2 . . . . 1 . 2 2 . . . . . . . . 5 . . . . . 1 . 1 1 . . Part Schematics Acquired 12 | . . . . . . . 1 . . . . . . 2 3 . . . . . . . . 5 . . . . . 1 . . . . . Parts Damaged . | . . . . . . . . . . . . . . . . . . . . . . . . . . . . . . . . . . . . Bothacking | -11 -10 -10 -9 -8 -7 -7 -7 -7 -7 -7 -6 -6 -6 -6 -5 -5 -5 -5 -5 -5 -4 -4 -4 -4 -4 -4 -4 -3 -3 -3 -2 -2 -2 -1 -1 ------------ Run | Scr Mat Min Mat Mat Fac Was Fac Low Low Dat Pro Fac Was Fac Fac Was Fac Upp Upp Zhi Pro Fac Was Fac Upp Upp War Pro Res Qua Res Tes Sec Acc Com Used RIF Installer . | . . . . . . . . . . . . . . . . . . . . . . . . . . . . . . . . . . . . Robots Hacked 2 | . . . . . 1 . . . . . . . . . . . . . . . . 1 . . . . . . . . . . . . . Non-combat 2 | . . . . . 1 . . . . . . . . . . . . . . . . 1 . . . . . . . . . . . . . Combat . | . . . . . . . . . . . . . . . . . . . . . . . . . . . . . . . . . . . . Robot Hacks Applied 2 | . . . . . 1 . . . . . . . . . . . . . . . . 1 . . . . . . . . . . . . . find_chute 2 | . . . . . 1 . . . . . . . . . . . . . . . . 1 . . . . . . . . . . . . . Relay Couplers Released . | . . . . . . . . . . . . . . . . . . . . . . . . . . . . . . . . . . . . Fabnet Peak Effective % . | . . . . . . . . . . . . . . . . . . . . . . . . . . . . . . . . . . . . Robots Rewired 1 | . . . . . . . . . . . . . . . . . . 1 . . . . . . . . . . . . . . . . . Allies Hacked 1 | . . . . . . . . . . . . . . 1 . . . . . . . . . . . . . . . . . . . . . Hacks Repelled . | . . . . . . . . . . . . . . . . . . . . . . . . . . . . . . . . . . . . Allies | -11 -10 -10 -9 -8 -7 -7 -7 -7 -7 -7 -6 -6 -6 -6 -5 -5 -5 -5 -5 -5 -4 -4 -4 -4 -4 -4 -4 -3 -3 -3 -2 -2 -2 -1 -1 -------- Run | Scr Mat Min Mat Mat Fac Was Fac Low Low Dat Pro Fac Was Fac Fac Was Fac Upp Upp Zhi Pro Fac Was Fac Upp Upp War Pro Res Qua Res Tes Sec Acc Com Total Allies 45 | . 1 . . 1 . . 1 . . . . 3 18 8 1 1 1 1 . . . 1 . . . . . . . 1 . . . . 7 Largest Group 18 | . 1 . . 1 . . 1 . . . . 3 18 15 1 1 1 1 . . . 1 . . . . . . . 1 . . . . 7 Highest-Rated Group 656 | . 10 . . 10 . . 26 . . . . 62 656 518 10 31 26 30 . . . 26 . . . . . . . 26 . . . . 102 Highest-Rated Ally 50 | . 10 . . 10 . . 26 . . . . 26 50 46 10 31 26 30 . . . 26 . . . . . . . 26 . . . . 15 Total Orders 37 | . . . . . . . . . . . . 9 . 4 11 . 1 12 . . . . . . . . . . . . . . . . . STAY 15 | . . . . . . . . . . . . 5 . 2 5 . . 3 . . . . . . . . . . . . . . . . . FOLLOW 7 | . . . . . . . . . . . . 3 . . 3 . . 1 . . . . . . . . . . . . . . . . . RETURN 15 | . . . . . . . . . . . . 1 . 2 3 . 1 8 . . . . . . . . . . . . . . . . . Ally Attacks 326 | . . . . . . . . . . . . 12 147 73 6 4 15 64 . . . . . . . . . . . . . . . . 5 Total Damage 9676 | . . . . . . . . . . . . 106 5855 1702 145 84 383 1222 . . . . . . . . . . . . . . . . 179 Kills 34 | . . . . . . . . . . . . . 10 15 1 . 1 6 . . . . . . . . . . . . . . . . 1 Allies Corrupted 1 | . . . . . . . . . . . . . . 1 . . . . . . . . . . . . . . . . . . . . . Allies Melted . | . . . . . . . . . . . . . . . . . . . . . . . . . . . . . . . . . . . . Intel | -11 -10 -10 -9 -8 -7 -7 -7 -7 -7 -7 -6 -6 -6 -6 -5 -5 -5 -5 -5 -5 -4 -4 -4 -4 -4 -4 -4 -3 -3 -3 -2 -2 -2 -1 -1 ------- Run | Scr Mat Min Mat Mat Fac Was Fac Low Low Dat Pro Fac Was Fac Fac Was Fac Upp Upp Zhi Pro Fac Was Fac Upp Upp War Pro Res Qua Res Tes Sec Acc Com Robot Analysis Total 17 | . 1 . . . . . 2 . . . . . . . 2 . 1 . . 4 . 2 . 4 . . . . . . . . . 1 . Derelict Logs Recovered 10 | . . 2 . . . . . . . . 1 . . . . . . 2 2 . 2 . . . 1 . . . . . . . . . . Drone Launches 19 | . . . . . . . . . . . . 2 . 4 4 . 2 7 . . . . . . . . . . . . . . . . . Drone Recoveries 17 | . . . . . . . . . . . . 1 . 4 4 . 2 6 . . . . . . . . . . . . . . . . . Exploration | -11 -10 -10 -9 -8 -7 -7 -7 -7 -7 -7 -6 -6 -6 -6 -5 -5 -5 -5 -5 -5 -4 -4 -4 -4 -4 -4 -4 -3 -3 -3 -2 -2 -2 -1 -1 ------------- Run | Scr Mat Min Mat Mat Fac Was Fac Low Low Dat Pro Fac Was Fac Fac Was Fac Upp Upp Zhi Pro Fac Was Fac Upp Upp War Pro Res Qua Res Tes Sec Acc Com Turns Passed 34669 | 74 1362 345 1502 1761 1797 81 2783 454 108 236 253 4446 221 3238 3448 42 1193 430 775 77 275 1501 30 1536 137 2 458 229 575 761 1003 1963 736 287 550 Spaces Moved 40875 | 43 685 191 676 689 1903 127 3288 844 274 131 622 5437 335 4100 4426 72 916 562 932 141 492 2036 90 1907 272 6 931 358 790 1045 1992 2075 1184 746 557 Core 48 | 8 . . . . . . . . . . . . . . . . . . . . . . . . . . . . . . . . . . 40 Treads 2276 | 35 685 191 676 689 . . . . . . . . . . . . . . . . . . . . . . . . . . . . . . . Legs . | . . . . . . . . . . . . . . . . . . . . . . . . . . . . . . . . . . . . Wheels . | . . . . . . . . . . . . . . . . . . . . . . . . . . . . . . . . . . . . Hover 38551 | . . . . . 1903 127 3288 844 274 131 622 5437 335 4100 4426 72 916 562 932 141 492 2036 90 1907 272 6 931 358 790 1045 1992 2075 1184 746 517 Flight . | . . . . . . . . . . . . . . . . . . . . . . . . . . . . . . . . . . . . Fastest Speed 16 | 50 160 160 160 155 45 45 38 38 38 38 38 38 38 38 35 30 42 27 27 42 27 33 33 17 31 31 16 16 35 35 36 34 24 30 30 Average Speed 47 | 139 160 165 162 198 47 45 42 38 38 38 38 38 38 45 40 54 54 49 41 42 44 43 33 36 31 31 30 36 39 35 37 39 35 30 35 Slowest Speed 550 | 160 160 240 240 240 105 45 112 38 38 38 38 102 38 107 100 100 105 98 42 42 98 98 33 90 31 31 86 86 86 40 40 40 36 34 550 Overloaded Moves 134 | . . . . . . . . . . . . . . . 12 1 . 8 8 . 23 1 . 20 . . 8 37 . . . . 16 . . Propulsion Burnouts . | . . . . . . . . . . . . . . . . . . . . . . . . . . . . . . . . . . . . Robots Hopped 1 | . . . . . . . . . . . . . 1 . . . . . . . . . . . . . . . . . . . . . . Cave-ins Triggered . | . . . . . . . . . . . . . . . . . . . . . . . . . . . . . . . . . . . . Teleports 1 | . . . . . . . . . . . . . . . . . . . . . . . . . . . . . . . . . 1 . . Exploration Rate (%) 57 | 5 91 38 62 49 50 86 56 79 39 80 79 72 92 61 71 83 17 51 86 60 66 27 84 42 51 3 94 53 21 70 44 95 59 23 17 Regions Visited 35 Branch Regions 17 Pre-discovered Areas 6 | . . . . . . . . . . 1 1 . . . . . . . 1 3 . . . . . . . . . . . . . . . Known Exits Taken 23 | . . . 1 . . . 1 1 1 1 1 . . 1 . . 1 1 1 1 1 . . 1 1 1 1 1 1 1 1 1 1 1 . Unknown Exits Taken 4 | 1 1 1 . 1 . . . . . . . . . . . . . . . . . . . . . . . . . . . . . . . Scrap Searched 15 | . . 1 . . . . . 2 2 . 2 . . . . . . . 3 . . . . . 1 . . 4 . . . . . . . Spaces Dug 575 | . . 10 4 . 46 . 60 36 . 2 . 83 4 64 61 . 9 1 6 . 32 12 . 31 5 . 2 13 12 17 5 35 17 8 . Terrain Destroyed 1341 | . 50 10 25 46 59 . 60 36 . 2 . 141 4 158 119 . 36 52 99 . 32 44 . 224 10 . 2 19 15 23 7 38 20 8 2 Melee 379 | . . . . . 46 . 60 13 . 2 . 70 4 45 52 . 9 1 6 . 15 . . . . . . . . . 4 29 15 8 . Projectile 166 | . . . . . . . . . . . . . . . . . . . . . . 24 . 54 10 . 2 19 15 23 3 9 5 . 2 AOE 796 | . 50 10 25 46 13 . . 23 . . . 71 . 113 67 . 27 51 93 . 17 20 . 170 . . . . . . . . . . . Terrain Rammed . | . . . . . . . . . . . . . . . . . . . . . . . . . . . . . . . . . . . . Walls Destroyed . | . . . . . . . . . . . . . . . . . . . . . . . . . . . . . . . . . . . . Machines Disabled . | . . . . . . . . . . . . . . . . . . . . . . . . . . . . . . . . . . . . Actions | -11 -10 -10 -9 -8 -7 -7 -7 -7 -7 -7 -6 -6 -6 -6 -5 -5 -5 -5 -5 -5 -4 -4 -4 -4 -4 -4 -4 -3 -3 -3 -2 -2 -2 -1 -1 --------- Run | Scr Mat Min Mat Mat Fac Was Fac Low Low Dat Pro Fac Was Fac Fac Was Fac Upp Upp Zhi Pro Fac Was Fac Upp Upp War Pro Res Qua Res Tes Sec Acc Com Total 53730 | 54 839 204 979 936 2649 150 4459 947 277 248 631 7526 421 5318 5889 74 1571 708 1290 159 516 2599 89 2615 313 5 1102 432 1019 1388 2242 3044 1415 774 848 Wait 9994 | . 31 . 143 61 537 24 980 79 . 82 1 1858 84 1007 1222 . 583 118 317 . 4 446 . 480 31 . 131 33 172 254 202 777 128 6 203 Move 40842 | 42 684 190 675 688 1903 126 3287 843 273 130 621 5437 332 4099 4426 71 915 561 931 140 491 2036 89 1906 271 5 930 357 789 1044 1991 2074 1183 745 557 Hop 1 | . . . . . . . . . . . . . 1 . . . . . . . . . . . . . . . . . . . . . . Pick Up 266 | 6 22 2 20 16 25 . 12 . . . . 19 . 23 27 1 11 6 4 3 . 6 . 15 . . 7 . 7 8 8 12 3 1 2 Fast Attach 279 | 6 4 . 11 17 6 . 20 2 2 . 2 18 . 18 22 1 14 . 6 6 . 23 . 16 . . 12 9 4 7 12 19 11 2 9 Attach 151 | . 3 . 4 4 20 . 6 2 . . 1 18 . 19 16 . 6 6 1 2 . 5 . 7 . . . . 5 2 3 10 5 1 5 Detach 24 | . 1 . . . 3 . 2 2 . . 1 4 . . 1 . . . . . . . . . . . . . . . . 4 2 . 4 Swap 304 | . 7 3 21 19 20 . 25 1 . 1 1 20 . 20 22 . 5 . 4 . 1 11 . 34 1 . . 2 8 11 2 29 25 3 8 Drop 415 | . 17 1 36 37 37 . 22 2 2 1 1 25 . 25 22 1 13 6 9 8 . 21 . 20 . . 20 9 6 16 17 23 8 1 9 Fire 608 | . 57 8 66 90 3 . . 2 . . . 12 . 14 12 . 2 6 9 . 1 50 . 111 10 . 2 22 28 46 3 9 6 . 39 Melee 772 | . . . . . 82 . 105 14 . 34 3 112 4 93 116 . 22 1 9 . 19 1 . . . . . . . . 4 84 43 14 12 Ram 2 | . . . . . . . . . . . . . . . . . . . . . . . . . . . . . . . . . 1 1 . Kick . | . . . . . . . . . . . . . . . . . . . . . . . . . . . . . . . . . . . . Crush 20 | . 13 . 3 4 . . . . . . . . . . . . . . . . . . . . . . . . . . . . . . . Escape Stasis 45 | . . . . . 13 . . . . . . . . . 3 . . . . . . . . 26 . . . . . . . 3 . . . Rewire 4 | . . . . . . . . . . . . . . . . . . 4 . . . . . . . . . . . . . . . . . Trap 3 | . . . . . . . . . . . . 3 . . . . . . . . . . . . . . . . . . . . . . . Miscellaneous . | . . . . . . . . . . . . . . . . . . . . . . . . . . . . . . . . . . . . Route ------- -11/Scrapyard -10/Materials (discovered 5 exits: *Mat x3 / [*Min x2]) -10/Mines -9/Materials (discovered 3 exits: *Mat x2 / [*Min]) -8/Materials (discovered 2 exits: *Fac / [*Sto]) -7/Factory (discovered 2 exits: *Fac x2) -7/Waste -7/Factory (discovered 4 exits: *Fac x2 / *Low x2) -7/Lower Caves (discovered 2 exits: *Low / *Dat) -7/Lower Caves (discovered 2 exits: *Fac / *Dat) -7/Data Miner -6/Proximity Caves -6/Factory (discovered 5 exits: *Fac x3 / *Low x2) -6/Waste -6/Factory (discovered 5 exits: *Fac x3 / *Low x2) -5/Factory (discovered 7 exits: *Fac x3 / *Upp x2 / *Ext x2) -5/Waste -5/Factory (discovered 4 exits: *Upp x2 / Ext x2) -5/Upper Caves -5/Upper Caves -5/Zhirov -4/Proximity Caves -4/Factory (discovered 3 exits: Res x2 / *Upp) -4/Waste -4/Factory (discovered 4 exits: *Res x2 / *Upp x2) -4/Upper Caves -4/Upper Caves -4/Warlord -3/Proximity Caves -3/Research (discovered 4 exits: Res / Arm / *Qua x2) -3/Quarantine -2/Research (discovered 4 exits: *Acc x3 / *Tes) -2/Testing (discovered 2 exits: *Acc / *Sec) -2/Section 7 -1/Access -1/Command History --------- Turn | Location | Event 3 | -11/Scrapyard | Discovered new exit (range 15) 75 | -11/Scrapyard | Entered Materials 198 | -10/Materials | Discovered new exit (range 15) 314 | -10/Materials | Build established: Mutant 349 | -10/Materials | Discovered new exit (range 16) 688 | -10/Materials | Discovered new exit (range 8) 919 | -10/Materials | Discovered new exit (range 10) 1288 | -10/Materials | Discovered new exit (range 12) 1437 | -10/Materials | Entered Mines 1524 | -10/Mines | Met a Derelict bent on vengeance 1527 | -10/Mines | Learned location of 1 exit from Materials 1633 | -10/Mines | Learned Materials stockpile data 1702 | -10/Mines | Discovered new exit (range 11) 1742 | -10/Mines | Found a damaged Exp. Sensor Array with a note attached 1750 | -10/Mines | Found Prototype Device 1782 | -10/Mines | Entered Materials 1782 | -9/Materials | Evolved 2 slots: Propulsion x1, Utility x1 1783 | -9/Materials | Identified exit to Materials 1886 | -9/Materials | Repaired Rocket Launcher 2483 | -9/Materials | Discovered new exit (range 12) 3274 | -9/Materials | Discovered exit to Materials (range 4) 3284 | -9/Materials | Entered another Materials area 3284 | -8/Materials | Evolved 2 slots: Utility x2 3334 | -8/Materials | Repaired Lgt. Nuclear Core 3810 | -8/Materials | Identified Exp. Sensor Array 4092 | -8/Materials | Build established: Scavenger-Mutant 4198 | -8/Materials | Discovered new exit (range 15) 4244 | -8/Materials | Garrison activated, responded to threat 4553 | -8/Materials | Discovered new exit (range 5) 5045 | -8/Materials | Entered Factory 5045 | -7/Factory | Evolved 2 slots: Propulsion x1, Utility x1 5431 | -7/Factory | Discovered new exit (range 13) 5453 | -7/Factory | Identified exit to Factory 5512 | -7/Factory | Build established: Hacker-Mutant 5622 | -7/Factory | Repaired Exp. Sensor Array 5803 | -7/Factory | Repaired Gravmag System 6208 | -7/Factory | Discovered exit to Factory (range 9) 6622 | -7/Factory | Repaired Greatsword 6842 | -7/Factory | Manually triggered Chute Trap 6842 | -7/Factory | Sucked down chute 6842 | -7/Factory | Entered Waste 6852 | -7/Waste | Spotted C-40 Crusher 6853 | -7/Waste | Spotted C-40 Crusher 6857 | -7/Waste | EMP discharged 6864 | -7/Waste | Spotted C-40 Crusher 6900 | -7/Waste | Spotted C-40 Crusher 6903 | -7/Waste | Spotted C-40 Crusher 6904 | -7/Waste | Spotted C-40 Crusher 6916 | -7/Waste | Discovered new exit (range 12) 6923 | -7/Waste | Identified exit to Factory 6923 | -7/Waste | Entered Factory 6970 | -7/Factory | Build established: Scavenger-Mutant 7009 | -7/Factory | Fabricated Imp. Hacking Suite (x1) 7325 | -7/Factory | Build established: Hacker-Mutant 7689 | -7/Factory | Discovered new exit (range 9) 7692 | -7/Factory | Identified exit to Lower Caves 7772 | -7/Factory | Discovered exit to Lower Caves (range 15) 7781 | -7/Factory | Discovered exit to Factory (range 14) 7945 | -7/Factory | Repaired Greatsword 8398 | -7/Factory | Fabricated Imp. Airjet? 8512 | -7/Factory | Fabricated Imp. Airjet (x1) 9016 | -7/Factory | Fabricated Adv. Signal Interpreter? 9503 | -7/Factory | Repaired Aerolev Unit 9518 | -7/Factory | Repaired Greatsword 9629 | -7/Factory | Discovered exit to Factory (range 6) 9706 | -7/Factory | Entered Lower Caves 9928 | -7/Lower Caves | A Derelict revealed a hidden shortcut to meet someone special 9975 | -7/Lower Caves | Identified exit to Data Miner 10143 | -7/Lower Caves | Acquired the password to a Derelict Tinkerer's latest research 10158 | -7/Lower Caves | Discovered new exit (range 6) 10160 | -7/Lower Caves | Identified exit to Lower Caves 10160 | -7/Lower Caves | Entered another Lower Caves area 10165 | -7/Lower Caves | Discovered exit to Factory (range 6) 10212 | -7/Lower Caves | Encountered a Warlord checkpoint 10265 | -7/Lower Caves | Discovered exit to Data Miner (range 9) 10268 | -7/Lower Caves | Entered Data Miner 10268 | -7/Data Miner | Discovered new exit (range 6) 10276 | -7/Data Miner | Met Data Miner 10283 | -7/Data Miner | Learned location of Section 7 (-2) 10283 | -7/Data Miner | Acquired the access code to Warlord's prototype stash 10290 | -7/Data Miner | Received God Mode back door access code from Data Miner 10298 | -7/Data Miner | Data Conduit disabled 10504 | -7/Data Miner | Identified exit to Proximity Caves 10504 | -7/Data Miner | Entered Proximity Caves 10706 | -6/Proximity Caves | Learned location of Zion (-6) 10712 | -6/Proximity Caves | Discovered exit to Factory (range 7) 10757 | -6/Proximity Caves | Entered Factory 10757 | -6/Factory | Evolved 2 slots: Utility x2 11031 | -6/Factory | Discovered new exit (range 5) 11033 | -6/Factory | Identified exit to Lower Caves 11295 | -6/Factory | Discovered new exit (range 5) 11296 | -6/Factory | Identified exit to Factory 11320 | -6/Factory | Discovered exit to Factory (range 14) 11541 | -6/Factory | Discovered exit to Factory (range 10) 11682 | -6/Factory | Fabricated Adv. Hacking Suite? 11823 | -6/Factory | Fabricated Adv. Hacking Suite (x1) 11841 | -6/Factory | Discovered exit to Lower Caves (range 5) 12273 | -6/Factory | Fabricated Mni. Smartbomb Launcher? 12385 | -6/Factory | Fabricated Combat Drone Bay (x1) 12465 | -6/Factory | Build established: Wizard-Mutant 12582 | -6/Factory | Fabricated Exp. Utility Shielding (x1) 12605 | -6/Factory | Fabricated Adv. Hacking Suite (x1) 13058 | -6/Factory | Build established: Hacker-Mutant 14195 | -6/Factory | Repaired Greatsword 14267 | -6/Factory | Repaired Imp. Airjet 14426 | -6/Factory | Fabricated Kinetic Spear? 14703 | -6/Factory | Fabricated Combat Drone Bay (x1) 14858 | -6/Factory | Repaired Mni. Smartbomb Launcher 15195 | -6/Factory | Repaired Exp. Utility Shielding? 15203 | -6/Factory | Manually triggered Chute Trap 15203 | -6/Factory | Sucked down chute 15203 | -6/Factory | Entered Waste 15273 | -6/Waste | Spotted C-40 Crusher 15278 | -6/Waste | Spotted C-40 Crusher 15289 | -6/Waste | Spotted C-40 Crusher 15289 | -6/Waste | Spotted C-40 Crusher 15293 | -6/Waste | Spotted C-40 Crusher 15298 | -6/Waste | Warlord forces began an assault 15309 | -6/Waste | Allies destroyed C-40 Crusher 15317 | -6/Waste | Allies destroyed C-40 Crusher 15317 | -6/Waste | Allies destroyed C-40 Crusher 15319 | -6/Waste | Spotted C-40 Crusher 15325 | -6/Waste | Allies destroyed C-40 Crusher 15336 | -6/Waste | Allies destroyed C-40 Crusher 15372 | -6/Waste | Discovered new exit (range 16) 15393 | -6/Waste | Identified exit to Factory 15424 | -6/Waste | Entered Factory 15424 | -6/Factory | Accompanied by 12 allies 15633 | -6/Factory | Repaired Exp. Sensor Array? 15707 | -6/Factory | Repaired Imp. Airjet? 15791 | -6/Factory | Repaired Imp. Airjet? 15864 | -6/Factory | Repaired Aerolev Unit? 16040 | -6/Factory | Adv. Hacking Suite fried by hacking feedback 16124 | -6/Factory | Fabricated Adv. Hacking Suite (x1) 16184 | -6/Factory | Discovered exit to Factory (range 14) 16408 | -6/Factory | Discovered exit to Factory (range 10) 16620 | -6/Factory | P-60 Hacker assimilated allied 3I-RDA(m) 16647 | -6/Factory | Discovered exit to Factory (range 6) 16741 | -6/Factory | System corruption reached 10% 16814 | -6/Factory | Garrison activated, responded to threat 16888 | -6/Factory | Repaired Imp. Airjet 17023 | -6/Factory | Build established: Wizard-Mutant 17027 | -6/Factory | Adv. Hacking Suite fried by hacking feedback 17070 | -6/Factory | Fabricated Adv. Hacking Suite (x1) 17116 | -6/Factory | Garrison activated, responded to threat 17151 | -6/Factory | Destroyed 7 combat bots 17333 | -6/Factory | Build established: Hacker-Mutant 17418 | -6/Factory | Repaired Mni. Smartbomb Launcher 17447 | -6/Factory | Spotted B-75 Beast 17678 | -6/Factory | Fabricated Cld. Gravmag System? 17789 | -6/Factory | Found Prototype Launcher 17889 | -6/Factory | Identified Rocket Array 17929 | -6/Factory | Build established: Wizard-Mutant 17950 | -6/Factory | Fabricated Cld. Gravmag System (x1) 18366 | -6/Factory | Fabricated Cld. Gravmag System (x1) 18526 | -6/Factory | Fabricated Cld. Gravmag System (x1) 18662 | -6/Factory | Entered another Factory area 18662 | -5/Factory | Evolved 2 slots: Propulsion x1, Utility x1 18687 | -5/Factory | Discovered new exit (range 15) 18694 | -5/Factory | Identified exit to Factory 18700 | -5/Factory | Discovered new exit (range 10) 18707 | -5/Factory | Identified exit to Upper Caves 18787 | -5/Factory | Discovered exit to Upper Caves (range 3) 18848 | -5/Factory | Fabricated Adv. Hacking Suite (x1) 19162 | -5/Factory | Discovered exit to Factory (range 5) 19778 | -5/Factory | Discovered new exit (range 13) 20453 | -5/Factory | Discovered new exit (range 13) 20499 | -5/Factory | Discovered exit to Factory (range 4) 20710 | -5/Factory | Repaired Cmb. Airjet 20717 | -5/Factory | Repaired Mni. Smartbomb Launcher? 20756 | -5/Factory | Repaired Cld. Gravmag System 20765 | -5/Factory | Repaired Cld. Gravmag System 20810 | -5/Factory | Repaired Cld. Gravmag System 20856 | -5/Factory | Repaired Cld. Gravmag System 21001 | -5/Factory | Fabricated Exp. Signal Interpreter (x1) 21028 | -5/Factory | Fabricated Hcp. Storage Unit (x1) 21206 | -5/Factory | P-70 Sage assimilated allied Technician 6a 21378 | -5/Factory | System corruption reached 10% 21685 | -5/Factory | Fabricated Mni. Smartbomb Launcher (x1) 21822 | -5/Factory | Fabricated Exp. Utility Shielding (x1) 21906 | -5/Factory | Repaired Exp. Utility Shielding 21929 | -5/Factory | Repaired Imp. Medium Armor Plating 21974 | -5/Factory | Repaired Cld. Gravmag System 22020 | -5/Factory | Repaired Cld. Gravmag System 22067 | -5/Factory | Repaired Cld. Gravmag System 22110 | -5/Factory | Sucked down chute 22110 | -5/Factory | Entered Waste 22111 | -5/Waste | Met a frightened Derelict 22114 | -5/Waste | Spotted C-40 Crusher 22114 | -5/Waste | Spotted C-40 Crusher 22115 | -5/Waste | Spotted C-40 Crusher 22120 | -5/Waste | Spotted C-40 Crusher 22125 | -5/Waste | EMP discharged 22128 | -5/Waste | Spotted C-40 Crusher 22131 | -5/Waste | Spotted C-40 Crusher 22133 | -5/Waste | Crushed by Compactor (1 part destroyed, 1 dropped) 22136 | -5/Waste | Discovered new exit (range 16) 22151 | -5/Waste | Identified exit to Factory 22152 | -5/Waste | Entered Factory 22334 | -5/Factory | Repaired Mni. Smartbomb Launcher 22425 | -5/Factory | Repaired Cld. Gravmag System 22529 | -5/Factory | Repaired Broken Adv. Phase Shifter 22580 | -5/Factory | Repaired Cmb. Airjet 22921 | -5/Factory | Identified exit to Extension 23039 | -5/Factory | Fabricated Adv. Hacking Suite (x1) 23345 | -5/Factory | Entered Upper Caves 23353 | -5/Upper Caves | Encountered a Warlord checkpoint 23395 | -5/Upper Caves | Learned Factory terminal intel 23764 | -5/Upper Caves | Learned location of 2 exits from Factory 23771 | -5/Upper Caves | Discovered new exit (range 10) 23774 | -5/Upper Caves | Identified exit to Upper Caves 23775 | -5/Upper Caves | Entered another Upper Caves area 23797 | -5/Upper Caves | Encountered a Warlord checkpoint 23818 | -5/Upper Caves | Learned location of Armory (-3) 23826 | -5/Upper Caves | Found Alien Artifact 24402 | -5/Upper Caves | Discovered new exit (range 7) 24526 | -5/Upper Caves | Spotted B-75 Beast 24527 | -5/Upper Caves | Attracted the attention of an 0b10 checkpoint 24550 | -5/Upper Caves | Identified exit to Zhirov 24550 | -5/Upper Caves | Entered Zhirov 24550 | -5/Zhirov | Discovered new exit (range 3) 24558 | -5/Zhirov | Met Zhirov 24567 | -5/Zhirov | Learned location of Quarantine (-3) 24567 | -5/Zhirov | Learned location of Testing (-2) 24567 | -5/Zhirov | Learned location of Command (-1) 24570 | -5/Zhirov | Zhirov requested help retrieving the SGEMP Prototype 24577 | -5/Zhirov | Found Alien Artifact 24577 | -5/Zhirov | Identified Integrated Reactor 24577 | -5/Zhirov | Installed Integrated Reactor, increased core energy generation (+10) 24610 | -5/Zhirov | Found Alien Artifact 24627 | -5/Zhirov | Identified exit to Proximity Caves 24627 | -5/Zhirov | Entered Proximity Caves 24659 | -4/Proximity Caves | Learned location of 1 exit from Research 24838 | -4/Proximity Caves | Learned 8 Research zone layouts 24863 | -4/Proximity Caves | Spotted B-86 Titan 24890 | -4/Proximity Caves | Build established: Hacker-Mutant 24898 | -4/Proximity Caves | Discovered exit to Factory (range 5) 24902 | -4/Proximity Caves | Entered Factory 24902 | -4/Factory | Evolved 2 slots: Power x1, Propulsion x1 24903 | -4/Factory | Identified exit to Research 24904 | -4/Factory | Loaded intel: 25 terminal locations 25118 | -4/Factory | Fabricated Cld. Plasma Cannon (x1) 25141 | -4/Factory | Found Prototype Hackware 25156 | -4/Factory | Fabricated Adv. Cloaking Device? 25389 | -4/Factory | Discovered new exit (range 17) 25861 | -4/Factory | Build established: Fabricator-Mutant 26099 | -4/Factory | Identified exit to Upper Caves 26315 | -4/Factory | Fabricated Cld. Gravmag System (x1) 26361 | -4/Factory | Fabricated Cld. Gravmag System? 26403 | -4/Factory | Sucked down chute 26403 | -4/Factory | Entered Waste 26406 | -4/Waste | Spotted C-40 Crusher 26406 | -4/Waste | Spotted C-40 Crusher 26411 | -4/Waste | Spotted C-40 Crusher 26414 | -4/Waste | Spotted C-40 Crusher 26418 | -4/Waste | EMP discharged 26418 | -4/Waste | System corruption reached 10% 26422 | -4/Waste | Spotted C-40 Crusher 26426 | -4/Waste | Spotted C-40 Crusher 26429 | -4/Waste | Discovered new exit (range 11) 26433 | -4/Waste | Identified exit to Factory 26433 | -4/Waste | Entered Factory 26523 | -4/Factory | Identified Exp. System Shield 26523 | -4/Factory | Identified Dimensional Node Initializer 26523 | -4/Factory | Identified Transdimensional Reconstructor 26678 | -4/Factory | Build established: Fabricator-Sprinter 26740 | -4/Factory | Discovered exit to Research (range 5) 26975 | -4/Factory | Adv. Hacking Suite fried by hacking feedback 27012 | -4/Factory | Spotted B-86 Titan 27051 | -4/Factory | Discovered exit to Research (range 7) 27113 | -4/Factory | Fabricated Exp. Sensor Array? 27179 | -4/Factory | Fabricated Exp. Terrain Scanner (x1) 27227 | -4/Factory | Fabricated Exp. Terrain Scan Processor? 27559 | -4/Factory | Build established: Wizard-Sprinter 27621 | -4/Factory | Repaired Mni. Smartbomb Launcher? 27673 | -4/Factory | Repaired Cld. Gravmag System? 27895 | -4/Factory | Spotted B-86 Titan 27908 | -4/Factory | Found Unknown Device 27908 | -4/Factory | Identified Quantum Capacitor 27933 | -4/Factory | First assault squad dispatched 27969 | -4/Factory | Entered Upper Caves 28093 | -4/Upper Caves | Learned Research emergency access door positions 28103 | -4/Upper Caves | Discovered new exit (range 9) 28104 | -4/Upper Caves | Identified exit to Upper Caves 28106 | -4/Upper Caves | Entered another Upper Caves area 28106 | -4/Upper Caves | Discovered new exit (range 5) 28107 | -4/Upper Caves | Identified exit to Warlord 28108 | -4/Upper Caves | Entered Warlord 28119 | -4/Warlord | System corruption cleaned by Quarantine Array 28283 | -4/Warlord | Warlord's base attacked by MAIN.C 28301 | -4/Warlord | Met Warlord 28307 | -4/Warlord | Opened Warlord's prototype stash 28319 | -4/Warlord | Found Prototype Device 28319 | -4/Warlord | Identified Exp. Phase Shifter 28337 | -4/Warlord | Found Prototype Device 28337 | -4/Warlord | Identified System Purifier 28344 | -4/Warlord | Found Prototype Hackware 28346 | -4/Warlord | Found Prototype Processor 28349 | -4/Warlord | Found Prototype Reactor 28376 | -4/Warlord | Found Prototype Energy Gun 28376 | -4/Warlord | Identified Vortex Rifle 28448 | -4/Warlord | Opened side exit 28564 | -4/Warlord | Discovered new exit (range 9) 28566 | -4/Warlord | Identified exit to Proximity Caves 28566 | -4/Warlord | Entered Proximity Caves 28651 | -3/Proximity Caves | Spotted B-86 Titan 28744 | -3/Proximity Caves | Spotted B-86 Titan 28745 | -3/Proximity Caves | Entered a huge 0b10 base via the front door 28754 | -3/Proximity Caves | Derelicts attacked a huge 0b10 base 28762 | -3/Proximity Caves | Discovered exit to Research (range 16) 28795 | -3/Proximity Caves | Entered Research 28795 | -3/Research | Evolved 2 slots: Utility x2 28796 | -3/Research | Identified exit to Armory 28797 | -3/Research | Identified exit to Quarantine 28798 | -3/Research | Identified exit to Research 28811 | -3/Research | Found Fusion Bomb Launcher 28815 | -3/Research | Found Fusion Bomb Launcher 28880 | -3/Research | Fabricated Cmb. Linear Gravjet (x2) 29139 | -3/Research | Spotted B-86 Titan 29200 | -3/Research | Build established: Fabricator-Scout 29244 | -3/Research | Fabricated Cmb. Linear Gravjet (x2) 29370 | -3/Research | Entered Quarantine 29386 | -3/Quarantine | Identified Exp. Armor Integrity Analyzer 29386 | -3/Quarantine | Identified Vortex Chain Reactor 29422 | -3/Quarantine | Found Alien Artifact 29438 | -3/Quarantine | Identified Phase Redirector 29457 | -3/Quarantine | Found Dimensional Node Initializer 29460 | -3/Quarantine | Found Alien Artifact 29508 | -3/Quarantine | Repaired Cld. Gravmag System 29613 | -3/Quarantine | Found Alien Artifact 29621 | -3/Quarantine | Identified Terrabomb 29621 | -3/Quarantine | Identified Hpw. Transdimensional Reconstructor 29654 | -3/Quarantine | Discovered exit to Research (range 29) 29752 | -3/Quarantine | Identified Ghost Barrier 29930 | -3/Quarantine | Found Alien Artifact 29955 | -3/Quarantine | Identified Subatomic Replicator 30015 | -3/Quarantine | Found Alien Slashing Weapon 30015 | -3/Quarantine | Identified Sigix Broadsword 30131 | -3/Quarantine | Entered Research 30131 | -2/Research | Warlord forces began assault on 0b10 30131 | -2/Research | Evolved 2 slots: Propulsion x2 30183 | -2/Research | Repaired Adv. Cloaking Device 30210 | -2/Research | Build established: Wizard-Mutant 30241 | -2/Research | Research machine network offline 30395 | -2/Research | Borebot progress halted 30488 | -2/Research | Met up with Warlord 30609 | -2/Research | Borebot progress halted 30640 | -2/Research | Borebot progress halted 30762 | -2/Research | Discovered new exit (range 8) 30764 | -2/Research | Identified exit to Access 30815 | -2/Research | Spotted Striker 30920 | -2/Research | Found Prototype Processor 30920 | -2/Research | Identified Exp. Core Analyzer 30928 | -2/Research | Found Exp. Core Analyzer 31055 | -2/Research | Discovered exit to Access (range 21) 31095 | -2/Research | Discovered exit to Access (range 30) 31118 | -2/Research | Discovered new exit (range 28) 31131 | -2/Research | Identified exit to Testing 31134 | -2/Research | Entered Testing 31140 | -2/Testing | Protovariant out of control (PL-NWZSBHF0SK) 31237 | -2/Testing | Discovered exit to Access (range 20) 31272 | -2/Testing | Found Prototype Energy Cannon 31272 | -2/Testing | Identified Hpw. Disruptor Cannon 31391 | -2/Testing | Found Prototype Energy Cannon 31391 | -2/Testing | Identified Cld. Nova Cannon 31406 | -2/Testing | Found Prototype Device 31472 | -2/Testing | Identified Exp. Force Field 31538 | -2/Testing | Found Prototype Energy Gun 31538 | -2/Testing | Identified Tachyon Dispersion Ray 31719 | -2/Testing | Central database locked down 31769 | -2/Testing | Build established: Wizard-Ninja 31788 | -2/Testing | Found Antimissile System 31828 | -2/Testing | Repaired Cmb. Linear Gravjet 31840 | -2/Testing | Fabricated Femtoactuators? 31866 | -2/Testing | Repaired Cmb. Linear Gravjet 31917 | -2/Testing | Repaired Plasma Lance 32003 | -2/Testing | Repaired Cld. Gravmag System 32103 | -2/Testing | Fabricated Adv. Force Booster (x2) 32151 | -2/Testing | Fabricated Adv. Melee Analysis Suite? 32232 | -2/Testing | Fabricated Exp. Utility Shielding (x1) 32336 | -2/Testing | Fabricated Exp. Shield Generator? 32452 | -2/Testing | Spotted Superbehemoth 32567 | -2/Testing | Build established: Wizard-Gladiator 32783 | -2/Testing | Repaired Exp. Utility Shielding 32892 | -2/Testing | Repaired Cld. Antigrav System 33031 | -2/Testing | Found Prototype Protection 33062 | -2/Testing | Spotted Fortress 33096 | -2/Testing | Discovered new exit (range 5) 33097 | -2/Testing | Identified exit to Section 7 33097 | -2/Testing | Entered Section 7 33201 | -2/Section 7 | Found Alien Artifact 33221 | -2/Section 7 | Identified Core Reset Matrix 33223 | -2/Section 7 | Used Core Reset Matrix 33227 | -2/Section 7 | Sensed 16 artifacts in vicinity 33283 | -2/Section 7 | Discovered exit to Access (range 26) 33296 | -2/Section 7 | Found Integrated Reactor 33296 | -2/Section 7 | Installed Integrated Reactor, increased core energy generation (+10) 33321 | -2/Section 7 | Initialized slip node 33391 | -2/Section 7 | Found Integrated Dissipator 33391 | -2/Section 7 | Installed Integrated Dissipator, increased core heat dissipation (+20) 33715 | -2/Section 7 | Found Transdimensional Reconstructor 33733 | -2/Section 7 | Build established: Machinist-Gladiator 33747 | -2/Section 7 | Spotted B-99 Colossus 33762 | -2/Section 7 | Found Integrated Reactor 33762 | -2/Section 7 | Installed Integrated Reactor, increased core energy generation (+10) 33778 | -2/Section 7 | Found LRC Boosters 33778 | -2/Section 7 | Installed LRC Boosters, increased mass support (+10) 33782 | -2/Section 7 | Warped through subspace to slip node 33833 | -2/Section 7 | Entered Access 33833 | -1/Access | Evolved 2 slots: Propulsion x1, Utility x1 34097 | -1/Access | Spotted B-99 Colossus 34119 | -1/Access | Discovered new exit (range 7) 34120 | -1/Access | Identified exit to Command 34120 | -1/Access | Entered Command 34137 | -1/Command | Disengaged cave seal 34137 | -1/Command | Derelicts emerged from the dark tunnel 34137 | -1/Command | Welcomed Warlord to Command 34193 | -1/Command | Disengaged cave seal 34204 | -1/Command | Identified SHELL Armor 34273 | -1/Command | Spotted M Guard 34273 | -1/Command | Spotted M Guard 34273 | -1/Command | Spotted Combat Programmer 34274 | -1/Command | Spotted Combat Programmer 34283 | -1/Command | Combat Programmer assimilated allied WO-WWK(d) 34296 | -1/Command | Warlord commented on Warlord statues 34299 | -1/Command | Combat Programmer assimilated allied TP-3DC(g) 34301 | -1/Command | System corruption reached 10% 34305 | -1/Command | Destroyed Combat Programmer 34324 | -1/Command | All MAIN.C guards destroyed 34556 | -1/Command | Met MAIN.C 34572 | -1/Command | 0b10 Conduit disabled 34579 | -1/Command | MAIN.C activated Command garrisons 34592 | -1/Command | Destroyed I6-S9J(K) 34660 | -1/Command | Core integrity fell below 50% 34665 | -1/Command | Emitted hypermatrix ping 34669 | -1/Command | Core integrity fell below 20% 34670 | -1/Command | Assembled emerged from beneath the floor 34670 | -1/Command | Destroyed by G-73 Enforcer with Heavy Laser Last Messages --------------- 34655_ Knocked back. 34655_ Mni. Smartbomb Launcher destroyed. 34658_ Cmb. Linear Gravjet destroyed. 34663_ P-80 Master resets B-74 Champion, system corruption cleaned. 34665_ Emitted hypermatrix ping. 34667_ Slug penetrates Reinforced Barrier. 34668_ C-30 ARC bursts open, deploying its payload. 34668_ P-80 Master unfolds itself. 34668_ Slug penetrates S-43 Plague. 34668_ Exp. Armor Integrity Analyzer severed. 34668_ Penetrated by Slug. 34669_ Exp. Core Analyzer severed. 34669_ Penetrated by Slug. 34670_ Assembled emerge from beneath the floor. 34670_ Slug penetrates P-80 Master. 34670_ P-80 Master suffers critical hit (Destroy). 34670_ P-80 Master destroyed. 34670_ as-89915 sneak attacks. 34670_ Penetrated by Slug. 34670_ Slug penetrates H-88 Terminator. Map ----- +----------------------------------------------------+ | ?????????????????????????????????????????????????? | | ?????????????????????????????????????????????????? | | ?????????????????????????????????????????????????? | | ?????????????????????????????????????????????????? | | ?????????????????????????????????????????????????? | | ?????????????????????????????????????????????????? | | ??????????????????????????? ???????????????????? | | ??????????????????????????? ???????????????????? | | ??????????????????????????# #??????????????????? | | ##????????????????????????# #??????????????????? | | %#????????????????????????# #??????????????????? | | %#?###????????????????????# g#??????????????????? | | ###"###################??# #??????????????????? | | / =R*[=#??# #??????????????????? | | %/" a ==#??# g #????##????????????? | | /%" % aa[=#??# ##### #????????????? | | ###################g%!#??# ### ##????????????? | | #?????????????????#%*=####g # ######???????? | | #?????????????????# ! ## # x # #" ########? | | "#?????????????????# % # h# # # # # #? | | "#?????????????????# ss#### gW### W # # # ## | | "#?????????????????# d shis%x g h gR + | | "#?????????????????# cc bsl l p g g + | | ???????????????????# shhbps h % + | | ???????????????????# e g h h % g + | | ???????????????????# h@g s x b + | | ???????????????????# # g # # W # # # ## | | ???????????????????###### i # ### # #? | | ??????????????????????? #d g # ## ### #####? | | ??????????????????????## # ;###### ##????? | | ???????????????????????# ##x ##????########?????? | | ???????????????????????##?# #??????????????????? | | ??????????????????????????# #??????????????????? | | ??????????????????????????# #??????????????????? | | ??????????????????????????# #??????????????????? | | ??????????????????????????# #??????????????????? | | ??????????????????????????# h#??????????????????? | | ??????????????????????????# #??????????????????? | | ??????????????????????????# #??????????????????? | | ??????????????????????????# #??????????????????? | | ??????????????????????????? ???????????????????? | | ?????????????????????????????????????????????????? | | ?????????????????????????????????????????????????? | | ?????????????????????????????????????????????????? | | ?????????????????????????????????????????????????? | | ?????????????????????????????????????????????????? | | ?????????????????????????????????????????????????? | | ?????????????????????????????????????????????????? | | ?????????????????????????????????????????????????? | | ?????????????????????????????????????????????????? | +----------------------------------------------------+ Best States ------------- Heat Dissipation 74 Energy Generation 85 Energy Capacity 700 Matter Stores 300 Matter Capacity 300 Sight Range 16 Robot Scan Range 20 Terrain Scan Range 30 Terrain Scan Density 1010 ECM Strength 2 Jamming Range 14 Cloak Strength 4 Armor Coverage 1125 Resistance: TH 20 Utility Shielding 90 Point Defense Rating 240 Melee Speed Boost 50 Phase Shifting 20 Evasion (%) 79 Targeting Accuracy 8 Melee Accuracy 8 Core Analysis 8 Armor Integrity Analysis 50 Recoil Reduction 3 Kinecelleration 40 Salvage Targeting 4 Offensive Hacking 70 Defensive Hacking 36 Authchip Count 12 Trap Extractor Capacity 6 Item Schematics ----------------- Exp. Thermal Shield | -2/Section 7 | Archive Diametric Drive | -2/Section 7 | Archive Exp. Power Amplifier | -2/Section 7 | Archive Robot Schematics ------------------ A-27 Freighter | -2/Section 7 | Archive G-73 Enforcer | -2/Section 7 | Archive K-01 Serf | -2/Section 7 | Archive Fabricated ------------ Imp. Hacking Suite | x1 | -7/Factory | Authchip Imp. Airjet | x1 | -7/Factory | Authchip Imp. Airjet | x1 | -7/Factory | Authchip Adv. Signal Interpreter | x2 | -7/Factory | Authchip Adv. Hacking Suite | x1 | -6/Factory | Authchip Adv. Hacking Suite | x1 | -6/Factory | Authchip Mni. Smartbomb Launcher | x1 | -6/Factory | Authchip Combat Drone Bay | x1 | -6/Factory | Authchip Exp. Utility Shielding | x1 | -6/Factory | Authchip Adv. Hacking Suite | x1 | -6/Factory | Authchip Kinetic Spear | x1 | -6/Factory Combat Drone Bay | x1 | -6/Factory | Authchip Adv. Hacking Suite | x1 | -6/Factory | Authchip Adv. Hacking Suite | x1 | -6/Factory | Authchip Cld. Gravmag System | x1 | -6/Factory | Authchip Cld. Gravmag System | x1 | -6/Factory | Authchip Cld. Gravmag System | x1 | -6/Factory | Authchip Cld. Gravmag System | x1 | -6/Factory | Authchip Adv. Hacking Suite | x1 | -5/Factory | Authchip Exp. Signal Interpreter | x1 | -5/Factory | Authchip Hcp. Storage Unit | x1 | -5/Factory | Authchip Mni. Smartbomb Launcher | x1 | -5/Factory | Authchip Exp. Utility Shielding | x1 | -5/Factory | Authchip Adv. Hacking Suite | x1 | -5/Factory | Authchip Cld. Plasma Cannon | x1 | -4/Factory | Authchip Adv. Cloaking Device | x1 | -4/Factory | Authchip Cld. Gravmag System | x1 | -4/Factory | Authchip Cld. Gravmag System | x1 | -4/Factory | Authchip Exp. Sensor Array | x1 | -4/Factory | Authchip Exp. Terrain Scanner | x1 | -4/Factory | Authchip Exp. Terrain Scan Processor | x1 | -4/Factory | Authchip Cmb. Linear Gravjet | x2 | -3/Research | Authchip Cmb. Linear Gravjet | x2 | -3/Research | Authchip Femtoactuators | x1 | -2/Testing | Authchip Adv. Force Booster | x2 | -2/Testing | Authchip Adv. Melee Analysis Suite | x1 | -2/Testing | Authchip Exp. Utility Shielding | x1 | -2/Testing | Authchip Exp. Shield Generator | x1 | -2/Testing Alien Tech Used ----------------- Integrated Reactor Sigix Broadsword Core Reset Matrix Dimensional Node Initializer Integrated Dissipator LRC Boosters Transdimensional Reconstructor Achievements -------------- None Challenges ------------ None Game ------ Seed DisruptionReactiveSaw Manual? 0 Play Time 08:06:52 Cumulative 389.1 hours Start 2022.04.30 @ 15:10:08 End 2022.05.01 @ 05:35:32 Sessions 17 Manual Loads 0 Difficulty Rogue Special Mode None Game No. 385 Rogue 385 Adventurer 0 Explorer 0 Win Type - Total 20 Types 12/2/3/2/0/0/0/1/0 Lore% 92 Gallery% 88 Achievement% 75 Wizard Run 0 Options --------- ASCII 0 Keyboard 0 Movement Arrows Keybinds 0 Fullscreen 1 Font 18/Smallcaps Map View 76x50 Tactical HUD 1 Map Filters NONE Filters NONE Steam 1 RUN: 321bc6ac-e913-4fc2-8c32-6a470a6b8a1c